Workbook

Sheet Transition Matrices
A1: Model Inputs | H1: Transition Matrix: Treatment A | BB1: txA_cost | BC1: txA_QALY | BD1: txB_cost | BE1: txB_QALY | BK1: txA_cost | BL1: txA_QALY | BM1: txB_cost | BN1: txB_QALY | BP1: txA_NB | BQ1: txB_NB | BX1: CEAC/CEF | BY1: txA_% | BZ1: txB_% | CA1: txA_NB | CB1: txB_NB
AA2: Transition Matrix: Treatment B | BB2: =$R$92 -> 12426.23444 | BC2: =$V$92 -> 1.497952802 | BD2: =$AK$92 -> 19749.16566 | BE2: =$AO$92 -> 0.9897227902 | BK2: =AVERAGE(BK9:BK10008) -> 15792.55333 | BL2: =AVERAGE(BL9:BL10008) -> 0.804301801 | BM2: =AVERAGE(BM9:BM10008) -> 21072.78567 | BN2: =AVERAGE(BN9:BN10008) -> 0.8503690104 | BP2: =lambda*BL2-BK2 -> 8336.500696 | BQ2: =lambda*BN2-BM2 -> 4438.284642 | BY2: =BP3 -> 0.5817 | BZ2: =BQ3 -> 0.4183 | CA2: =BP2 -> 8336.500696 | CB2: =BQ2 -> 4438.284642
J3: SILENT | K3: ACTIVE | L3: COMPL | M3: DEAD | AC3: SILENT | AD3: ACTIVE | AE3: COMPL | AF3: DEAD | BP3: =COUNTIF($BR9:$BR10008,"tx A")/COUNT(BK$9:BK$10008) -> 0.5817 | BQ3: =COUNTIF($BR9:$BR10008,"tx B")/COUNT(BK$9:BK$10008) -> 0.4183
I4: SILENT | J4: =1-K4-L4-M4 -> 0.9281844038 | K4: =p_active_A -> 0.06670687852 | L4: =p_compl_sil_A -> 0.005108717634 | M4: =p_dead_sil_A -> 0 | AB4: SILENT | AC4: =1-AD4-AE4-AF4 -> 0.867531774 | AD4: =p_active_B -> 0.111075122 | AE4: =p_compl_sil_B -> 0.01816038784 | AF4: =p_dead_sil_B -> 0.003232716145 | BA4: numruns | BB4: 100 | BX4: lambda (display only)
I5: ACTIVE | J5: =p_success_A -> 0.2539622864 | K5: =1-J5-L5-M5 -> 0.6291416103 | L5: =p_compl_act_A -> 0.1074325885 | M5: =p_dead_act_A -> 0.00946351479 | AB5: ACTIVE | AC5: =p_success_B -> 0.2167303303 | AD5: =1-AC5-AE5-AF5 -> 0.6785054493 | AE5: =p_compl_act_B -> 0.1038238659 | AF5: =p_dead_act_B -> 0.0009403545299 | BP5: incr_cost | BQ5: incr_QALY | BR5: ICER | BX5: =lambda -> 30000
I6: COMPL | J6: 0 | K6: 0 | L6: =1-M6 -> 0.991010859 | M6: =p_dead_cmp_A -> 0.008989141004 | AB6: COMPL | AC6: 0 | AD6: 0 | AE6: =1-AF6 -> 0.991010859 | AF6: =p_dead_cmp_B -> 0.008989141004 | AQ6: Incremental analysis | BP6: =BM2-BK2 -> 5280.232335 | BQ6: =BN2-BL2 -> 0.04606720938 | BR6: =BP6/BQ6 -> 114620.1909
I7: DEAD | J7: 0 | K7: 0 | L7: 0 | M7: 1 | AB7: DEAD | AC7: 0 | AD7: 0 | AE7: 0 | AF7: 1
BB8: txA_cost | BC8: txA_QALY | BD8: txB_cost | BE8: txB_QALY | BK8: txA_cost | BL8: txA_QALY | BM8: txB_cost | BN8: txB_QALY | BP8: txA_NB | BQ8: txB_NB | BR8: Optimal | BX8: lambda or WTP | BY8: txA_% | BZ8: txB_% | CA8: txA_NB | CB8: txB_NB | CC8: CEF
AT9: COSTS | AU9: OUTCOMES | AV9: NET BENEFIT | BA9: 1 | BB9: 12863.41138 | BC9: 1.465421538 | BD9: 20545.91168 | BE9: 0.6903923645 | BJ9: 1 | BK9: 12863.41138 | BL9: 1.465421538 | BM9: 20545.91168 | BN9: 0.6903923645 | BP9: =IF(BK9<>"",lambda*BL9-BK9,"") -> 31099.23477 | BQ9: =IF(BK9<>"",lambda*BN9-BM9,"") -> 165.8592534 | BR9: =IF(BK9<>"",IF(BP9>BQ9, "tx A", IF(BQ9>BP9, "tx B", "either")),"") -> tx A | BX9: 0 | BY9: 0.99982 | BZ9: 0.00018 | CA9: -15806.35944 | CB9: -21070.88349 | CC9: =IF(CA9>CB9,BY9,BZ9) -> 0.99982
AR10: Treatment A | AT10: =$R$92 -> 12426.23444 | AU10: =$V$92 -> 1.497952802 | AV10: =AU10*lambda-AT10 -> 32512.3496 | BA10: =1+BA9 -> 2 | BB10: 17129.95927 | BC10: -0.09377442305 | BD10: 21328.08054 | BE10: -0.06525133813 | BJ10: =1+BJ9 -> 2 | BK10: 17129.95927 | BL10: -0.09377442305 | BM10: 21328.08054 | BN10: -0.06525133813 | BP10: -19943.19196 | BQ10: =IF(BK10<>"",lambda*BN10-BM10,"") -> -23285.62068 | BR10: =IF(BK10<>"",IF(BP10>BQ10, "tx A", IF(BQ10>BP10, "tx B", "either")),"") -> tx A | BX10: 1000 | BY10: 0.99825 | BZ10: 0.00175 | CA10: -15010.7338 | CB10: -20226.63166 | CC10: =IF(CA10>CB10,BY10,BZ10) -> 0.99825
AR11: Treatment B | AT11: =$AK$92 -> 19749.16566 | AU11: =$AO$92 -> 0.9897227902 | AV11: =AU11*lambda-AT11 -> 9942.518048 | BA11: =1+BA10 -> 3 | BB11: 17480.42182 | BC11: -0.07972388585 | BD11: 20873.29247 | BE11: 0.1120490339 | BJ11: =1+BJ10 -> 3 | BK11: 17480.42182 | BL11: -0.07972388585 | BM11: 20873.29247 | BN11: 0.1120490339 | BP11: -19872.1384 | BQ11: -17511.82146 | BR11: tx B | BX11: 2000 | BY11: 0.99173 | BZ11: 0.00827 | CA11: -14215.10815 | CB11: -19382.37983 | CC11: 0.99173
BA12: 4 | BB12: 14462.22094 | BC12: 0.7468232711 | BD12: 20580.737 | BE12: 0.4379593024 | BJ12: 4 | BK12: 14462.22094 | BL12: 0.7468232711 | BM12: 20580.737 | BN12: 0.4379593024 | BP12: 7942.477193 | BQ12: -7441.957926 | BR12: tx A | BX12: 3000 | BY12: 0.97709 | BZ12: 0.02291 | CA12: -13419.4825 | CB12: -18538.12799 | CC12: 0.97709
BA13: 5 | BB13: 15544.34219 | BC13: 1.313024309 | BD13: 21631.88063 | BE13: 1.306114338 | BJ13: 5 | BK13: 15544.34219 | BL13: 1.313024309 | BM13: 21631.88063 | BN13: 1.306114338 | BP13: 23846.38709 | BQ13: 17551.54951 | BR13: tx A | BX13: 4000 | BY13: 0.95436 | BZ13: 0.04564 | CA13: -12623.85686 | CB13: -17693.87616 | CC13: 0.95436
AR14: Incremental | AT14: =AT11-AT10 -> 7322.931213 | BA14: 6 | BB14: 17268.5531 | BC14: -0.09228942698 | BD14: 21317.67371 | BE14: 0.3281713992 | BJ14: 6 | BK14: 17268.5531 | BL14: -0.09228942698 | BM14: 21317.67371 | BN14: 0.3281713992 | BP14: -20037.2359 | BQ14: -11472.53174 | BR14: tx B | BX14: 5000 | BY14: 0.92711 | BZ14: 0.07289 | CA14: -11828.23121 | CB14: -16849.62433 | CC14: 0.92711
AT15: for | AU15: =AU11-AU10 -> -0.5082300114 | AV15: QALYs | BA15: 7 | BB15: 18286.0129 | BC15: 0.4033318642 | BD15: 21673.66047 | BE15: 0.8276256674 | BJ15: 7 | BK15: 18286.0129 | BL15: 0.4033318642 | BM15: 21673.66047 | BN15: 0.8276256674 | BP15: -6186.05697 | BQ15: 3155.109555 | BR15: tx B | BX15: 6000 | BY15: 0.89845 | BZ15: 0.10155 | CA15: -11032.60556 | CB15: -16005.3725 | CC15: 0.89845
BA16: 8 | BB16: 16134.47851 | BC16: 1.358857658 | BD16: 21790.26686 | BE16: 1.475822144 | BJ16: 8 | BK16: 16134.47851 | BL16: 1.358857658 | BM16: 21790.26686 | BN16: 1.475822144 | BP16: 24631.25121 | BQ16: 22484.39745 | BR16: tx A | BX16: 7000 | BY16: 0.8697 | BZ16: 0.1303 | CA16: -10236.97992 | CB16: -15161.12066 | CC16: 0.8697
AR17: ICER | AT17: =AT14/AU15 -> -14408.69498 | AU17: per QALY | BA17: 9 | BB17: 12362.02502 | BC17: 1.870550147 | BD17: 21553.12338 | BE17: 1.14399369 | BJ17: 9 | BK17: 12362.02502 | BL17: 1.870550147 | BM17: 21553.12338 | BN17: 1.14399369 | BP17: 43754.4794 | BQ17: 12766.68732 | BR17: tx A | BX17: 8000 | BY17: 0.84193 | BZ17: 0.15807 | CA17: -9441.354272 | CB17: -14316.86883 | CC17: 0.84193
BA18: 10 | BB18: 17563.58691 | BC18: 0.7012450877 | BD18: 21502.36913 | BE18: 0.9212197542 | BJ18: 10 | BK18: 17563.58691 | BL18: 0.7012450877 | BM18: 21502.36913 | BN18: 0.9212197542 | BP18: 3473.765718 | BQ18: 6134.223492 | BR18: tx B | BX18: 9000 | BY18: 0.81588 | BZ18: 0.18412 | CA18: -8645.728626 | CB18: -13472.617 | CC18: 0.81588
H19: TREATMENT A | AA19: TREATMENT B | BA19: 11 | BB19: 13913.86955 | BC19: 2.165746944 | BD19: 21251.54804 | BE19: 1.9716324 | BJ19: 11 | BK19: 13913.86955 | BL19: 2.165746944 | BM19: 21251.54804 | BN19: 1.9716324 | BP19: 51058.53877 | BQ19: 37897.42395 | BR19: tx A | BX19: 10000 | BY19: 0.79302 | BZ19: 0.20698 | CA19: -7850.10298 | CB19: -12628.36517 | CC19: 0.79302
J20: PROBABILITIES | O20: COSTS | S20: OUTCOMES | AC20: PROBABILITIES | AH20: COSTS | AL20: OUTCOMES | BA20: 12 | BB20: 15982.78478 | BC20: 0.8686943974 | BD20: 20253.92139 | BE20: 0.8022931277 | BJ20: 12 | BK20: 15982.78478 | BL20: 0.8686943974 | BM20: 20253.92139 | BN20: 0.8022931277 | BP20: 10078.04715 | BQ20: 3814.872442 | BR20: tx A | BX20: 11000 | BY20: 0.77076 | BZ20: 0.22924 | CA20: -7054.477333 | CB20: -11784.11333 | CC20: 0.77076
A21: PROBABILITIES | B21: Treatment A | C21: Treatment B | H21: YEARS | I21: PERIOD | J21: SILENT | K21: ACTIVE | L21: COMPL | M21: DEAD | N21: discount | O21: SILENT | P21: ACTIVE | Q21: COMPL | R21: DEAD | S21: SILENT | T21: ACTIVE | U21: COMPL | V21: DEAD | AA21: YEARS | AB21: PERIOD | AC21: SILENT | AD21: ACTIVE | AE21: COMPL | AF21: DEAD | AG21: discount | AH21: SILENT | AI21: ACTIVE | AJ21: COMPL | AK21: DEAD | AL21: SILENT | AM21: ACTIVE | AN21: COMPL | AO21: DEAD | BA21: 13 | BB21: 16507.71409 | BC21: 1.437404409 | BD21: 21351.57108 | BE21: 1.582696077 | BJ21: 13 | BK21: 16507.71409 | BL21: 1.437404409 | BM21: 21351.57108 | BN21: 1.582696077 | BP21: 26614.41817 | BQ21: 26129.31123 | BR21: tx A | BX21: 12000 | BY21: 0.75061 | BZ21: 0.24939 | CA21: -6258.851687 | CB21: -10939.8615 | CC21: 0.75061
A22: p_active | B22: =Parameters!D8 -> 0.06670687852 | C22: =Parameters!D9 -> 0.111075122 | H22: =TEXT((I22-MOD(I22-1,12))/12,"0")&"."&TEXT(MOD(I22-1,12), "00") -> 0.00 | I22: 1 | J22: 0 | K22: 1 | L22: 0 | M22: 0 | N22: 1 | O22: =c_sil_A*J22*N22 -> 0 | P22: =c_act_A*K22*N22 -> 140.152436 | Q22: =c_compl_A*L22*N22 -> 0 | R22: =c_dead_A*M22*N22 -> 0 | S22: =u_sil*J22*N22 -> 0 | T22: =u_act*K22*N22 -> 0.04205877449 | U22: =u_compl*L22*N22 -> 0 | V22: =u_dead*M22*N22 -> 0 | AA22: =TEXT((AB22-MOD(AB22-1,12))/12,"0")&"."&TEXT(MOD(AB22-1,12), "00") -> 0.00 | AB22: 1 | AC22: 0 | AD22: 1 | AE22: 0 | AF22: 0 | AG22: 1 | AH22: =c_sil_B*AC22*AG22 -> 0 | AI22: =c_act_B*AD22*AG22 -> 502.152436 | AJ22: =c_compl_B*AE22*AG22 -> 0 | AK22: =c_dead_B*AF22*AG22 -> 0 | AL22: =u_sil*AC22*AG22 -> 0 | AM22: =u_act*AD22*AG22 -> 0.04205877449 | AN22: =u_compl*AE22*AG22 -> 0 | AO22: =u_dead*AF22*AG22 -> 0 | BA22: 14 | BB22: 18600.85815 | BC22: 0.4450784913 | BD22: 21728.10678 | BE22: 1.073364806 | BJ22: 14 | BK22: 18600.85815 | BL22: 0.4450784913 | BM22: 21728.10678 | BN22: 1.073364806 | BP22: -5248.503406 | BQ22: 10472.83739 | BR22: tx B | BX22: 13000 | BY22: 0.73209 | BZ22: 0.26791 | CA22: -5463.226041 | CB22: -10095.60967 | CC22: 0.73209
A23: p_success | B23: =Parameters!D10 -> 0.2539622864 | C23: =Parameters!D11 -> 0.2167303303 | H23: =TEXT((I23-MOD(I23-1,12))/12,"0")&"."&TEXT(MOD(I23-1,12), "00") -> 0.01 | I23: =1+I22 -> 2 | J23: =MMULT(J22:M22,J$4:M$7) -> 0.2539622864 | K23: 0.6291416103 | L23: 0.1074325885 | M23: 0.00946351479 | N23: =N22 -> 1 | O23: =c_sil_A*J23*N23 -> 15.87508137 | P23: 88.17572927 | Q23: 46.54412636 | R23: 0 | S23: 0.01732832908 | T23: 0.02646092511 | U23: 5.036469782e-05 | V23: 0 | AA23: =TEXT((AB23-MOD(AB23-1,12))/12,"0")&"."&TEXT(MOD(AB23-1,12), "00") -> 0.01 | AB23: =1+AB22 -> 2 | AC23: =MMULT(AC22:AF22,AC$4:AF$7) -> 0.2167303303 | AD23: 0.6785054493 | AE23: 0.1038238659 | AF23: 0.0009403545299 | AG23: =AG22 -> 1 | AH23: 92.00410618 | AI23: 340.7131642 | AJ23: 41.21772552 | AK23: 0 | AL23: 0.01478792201 | AM23: 0.02853710768 | AN23: 4.867291858e-05 | AO23: 0 | BA23: 15 | BB23: 13165.6248 | BC23: 1.406517471 | BD23: 20946.05314 | BE23: 0.7534983338 | BJ23: 15 | BK23: 13165.6248 | BL23: 1.406517471 | BM23: 20946.05314 | BN23: 0.7534983338 | BP23: 29029.89933 | BQ23: 1658.896875 | BR23: tx A | BX23: 14000 | BY23: 0.71581 | BZ23: 0.28419 | CA23: -4667.600395 | CB23: -9251.357837 | CC23: 0.71581
A24: p_compl_sil | B24: =Parameters!D12 -> 0.005108717634 | C24: =Parameters!D13 -> 0.01816038784 | H24: 0.02 | I24: =1+I23 -> 3 | J24: =MMULT(J23:M23,J$4:M$7) -> 0.3955020753 | K24: 0.4127601972 | L24: 0.1753545952 | M24: 0.01638313241 | N24: =N23 -> 1 | O24: 24.72267719 | P24: 57.84934712 | Q24: 75.97067657 | R24: 0 | S24: 0.02698585765 | T24: 0.01736018805 | U24: 8.220672442e-05 | V24: 0 | AA24: 0.02 | AB24: =1+AB23 -> 3 | AC24: =MMULT(AC23:AF23,AC$4:AF$7) -> 0.335073158 | AD24: 0.4844429926 | AE24: 0.1772715442 | AF24: 0.003212305211 | AG24: =AG23 -> 1 | AH24: 142.2417729 | AI24: 243.2642288 | AJ24: 70.37620673 | AK24: 0 | AL24: 0.02286267788 | AM24: 0.02037507858 | AN24: 8.310539547e-05 | AO24: 0 | BA24: 16 | BB24: 13114.1367 | BC24: 0.7641632617 | BD24: 21427.31697 | BE24: 0.2882949492 | BJ24: 16 | BK24: 13114.1367 | BL24: 0.7641632617 | BM24: 21427.31697 | BN24: 0.2882949492 | BP24: 9810.761151 | BQ24: -12778.46849 | BR24: tx A | BX24: 15000 | BY24: 0.70062 | BZ24: 0.29938 | CA24: -3871.974748 | CB24: -8407.106004 | CC24: 0.70062
A25: p_compl_act | B25: =Parameters!D14 -> 0.1074325885 | C25: =Parameters!D15 -> 0.1038238659 | H25: 0.03 | I25: 4 | J25: =MMULT(J24:M24,J$4:M$7) -> 0.4719243814 | K25: 0.286067324 | L25: 0.2201427128 | M25: 0.02186558182 | N25: 1 | O25: 29.4998051 | P25: 40.09303232 | Q25: 95.37469389 | R25: 0 | S25: 0.03220029672 | T25: 0.01203164107 | U25: 0.0001032035192 | V25: 0 | AA25: 0.03 | AB25: 4 | AC25: =MMULT(AC24:AF24,AC$4:AF$7) -> 0.395680101 | AD25: 0.3659155022 | AE25: 0.232059828 | AF25: 0.006344568688 | AG25: 1 | AH25: 167.9700021 | AI25: 183.7453608 | AJ25: 92.12697114 | AK25: 0 | AL25: 0.02699800469 | AM25: 0.01538995759 | AN25: 0.0001087902961 | AO25: 0 | BA25: 17 | BB25: 17381.0597 | BC25: 1.245068914 | BD25: 21818.51468 | BE25: 1.441059545 | BJ25: 17 | BK25: 17381.0597 | BL25: 1.245068914 | BM25: 21818.51468 | BN25: 1.441059545 | BP25: 19971.00772 | BQ25: 21413.27167 | BR25: tx B | BX25: 16000 | BY25: 0.68661 | BZ25: 0.31339 | CA25: -3076.349102 | CB25: -7562.854172 | CC25: 0.68661
A26: p_dead_sil | B26: =Parameters!D16 -> 0 | C26: =Parameters!D17 -> 0.003232716145 | H26: 0.04 | I26: 5 | J26: =MMULT(J25:M25,J$4:M$7) -> 0.5106831622 | K26: 0.2114574593 | L26: 0.2513077004 | M26: 0.02655167806 | N26: 1 | O26: 31.92260106 | P26: 29.63627802 | Q26: 108.8766223 | R26: 0 | S26: 0.03484488195 | T26: 0.008893641593 | U26: 0.0001178137525 | V26: 0 | AA26: 0.04 | AB26: 5 | AC26: =MMULT(AC25:AF25,AC$4:AF$7) -> 0.4225700476 | AD26: 0.2922258777 | AE26: 0.2751502757 | AF26: 0.01005379895 | AG26: 1 | AH26: 179.3850426 | AI26: 146.7419364 | AJ26: 109.2337339 | AK26: 0 | AL26: 0.02883275681 | AM26: 0.01229066229 | AN26: 0.0001289912184 | AO26: 0 | BA26: 18 | BB26: 15070.67878 | BC26: 1.255056175 | BD26: 20993.25752 | BE26: 1.831870677 | BJ26: 18 | BK26: 15070.67878 | BL26: 1.255056175 | BM26: 20993.25752 | BN26: 1.831870677 | BP26: 22581.00647 | BQ26: 33962.8628 | BR26: tx B | BX26: 17000 | BY26: 0.67376 | BZ26: 0.32624 | CA26: -2280.723456 | CB26: -6718.602339 | CC26: 0.67376
A27: p_dead_act | B27: =Parameters!D18 -> 0.00946351479 | C27: =Parameters!D19 -> 0.0009403545299 | H27: 0.05 | I27: 6 | J27: =MMULT(J26:M26,J$4:M$7) -> 0.5277103663 | K27: 0.1671027661 | L27: 0.2743750184 | M27: 0.03081184921 | N27: 1 | O27: 32.9869648 | P27: 23.41985973 | Q27: 118.870314 | R27: 0 | S27: 0.03600668042 | T27: 0.007028137555 | U27: 0.0001286277756 | V27: 0 | AA27: 0.05 | AB27: 6 | AC27: =MMULT(AC26:AF26,AC$4:AF$7) -> 0.4299271541 | AD27: 0.2452138701 | AE27: 0.3106909673 | AF27: 0.01416800852 | AG27: 1 | AH27: 182.5082049 | AI27: 123.1347422 | AJ27: 123.3432689 | AK27: 0 | AL27: 0.02933474615 | AM27: 0.01031339486 | AN27: 0.000145652794 | AO27: 0 | BA27: 19 | BB27: 14050.80792 | BC27: 1.710498818 | BD27: 21729.70282 | BE27: 1.336830758 | BJ27: 19 | BK27: 14050.80792 | BL27: 1.710498818 | BM27: 21729.70282 | BN27: 1.336830758 | BP27: 37264.15661 | BQ27: 18375.21993 | BR27: tx A | BX27: 18000 | BY27: 0.66218 | BZ27: 0.33782 | CA27: -1485.097809 | CB27: -5874.350506 | CC27: 0.66218
A28: p_dead_cmp | B28: =Parameters!D20 -> 0.008989141004 | C28: =Parameters!D20 -> 0.008989141004 | H28: 0.06 | I28: 7 | J28: =MMULT(J27:M27,J$4:M$7) -> 0.5322503323 | K28: 0.1403332146 | L28: 0.2925568286 | M28: 0.03485962443 | N28: 1 | O28: 33.27075627 | P28: 19.66804188 | Q28: 126.7474068 | R28: 0 | S28: 0.03631645092 | T28: 0.005902243028 | U28: 0.0001371514591 | V28: 0 | AA28: 0.06 | AB28: 7 | AC28: =MMULT(AC27:AF27,AC$4:AF$7) -> 0.4261207497 | AD28: 0.2141331582 | AE28: 0.3411648182 | AF28: 0.01858127386 | AG28: 1 | AH28: 180.8923497 | AI28: 107.527487 | AJ28: 135.4412852 | AK28: 0 | AL28: 0.02907502796 | AM28: 0.00900617821 | AN28: 0.0001599390205 | AO28: 0 | BA28: 20 | BB28: 16788.82646 | BC28: 0.6865608056 | BD28: 21083.33118 | BE28: 0.6420575077 | BJ28: 20 | BK28: 16788.82646 | BL28: 0.6865608056 | BM28: 21083.33118 | BN28: 0.6420575077 | BP28: 3807.997713 | BQ28: -1821.605948 | BR28: tx A | BX28: 19000 | BY28: 0.65134 | BZ28: 0.34866 | CA28: -689.4721632 | CB28: -5030.098674 | CC28: 0.65134
H29: 0.07 | I29: 8 | J29: =MMULT(J28:M28,J$4:M$7) -> 0.5296658015 | K29: 0.1237942229 | L29: 0.3077224712 | M29: 0.03881750447 | N29: 1 | O29: 33.10919827 | P29: 17.3500619 | Q29: 133.3177743 | R29: 0 | S29: 0.03614010347 | T29: 0.005206633304 | U29: 0.0001442611547 | V29: 0 | AA29: 0.07 | AB29: 8 | AC29: =MMULT(AC28:AF28,AC$4:AF$7) -> 0.4160824401 | AD29: 0.1926219289 | AE29: 0.36806869 | AF29: 0.02322694103 | AG29: 1 | AH29: 176.6309909 | AI29: 96.72557084 | AJ29: 146.1220318 | AK29: 0 | AL29: 0.02839009503 | AM29: 0.008101442271 | AN29: 0.0001725516308 | AO29: 0 | BA29: 21 | BB29: 16688.32328 | BC29: 1.020089504 | BD29: 21096.41478 | BE29: 1.092976148 | BJ29: 21 | BK29: 16688.32328 | BL29: 1.020089504 | BM29: 21096.41478 | BN29: 1.092976148 | BP29: 13914.36183 | BQ29: 11692.86966 | BR29: tx A | BX29: 20000 | BY29: 0.64194 | BZ29: 0.35806 | CA29: 106.1534831 | CB29: -4185.846841 | CC29: 0.64194
A30: COSTS | B30: Treatment A | C30: Treatment B | H30: 0.08 | I30: 9 | J30: =MMULT(J29:M29,J$4:M$7) -> 0.5230666001 | K30: 0.113216449 | L30: 0.3209617573 | M30: 0.04275519361 | N30: 1 | O30: 32.69668482 | P30: 15.86756112 | Q30: 139.0535665 | R30: 0 | S30: 0.03568982742 | T30: 0.004761745097 | U30: 0.0001504677691 | V30: 0 | AA30: 0.08 | AB30: 9 | AC30: =MMULT(AC29:AF29,AC$4:AF$7) -> 0.4027117517 | AD30: 0.1769114362 | AE30: 0.3923150404 | AF30: 0.02806177171 | AG30: 1 | AH30: 170.9550053 | AI30: 88.83650865 | AJ30: 155.7477514 | AK30: 0 | AL30: 0.02747778756 | AM30: 0.007440678201 | AN30: 0.0001839183877 | AO30: 0 | BA30: 22 | BB30: 14390.68821 | BC30: 1.301240261 | BD30: 20710.82 | BE30: 1.013699761 | BJ30: 22 | BK30: 14390.68821 | BL30: 1.301240261 | BM30: 20710.82 | BN30: 1.013699761 | BP30: 24646.51962 | BQ30: 9700.172848 | BR30: tx A | BX30: 21000 | BY30: 0.6334 | BZ30: 0.3666 | CA30: 901.7791294 | CB30: -3341.595009 | CC30: 0.6334
A31: SILENT | B31: =Parameters!D24+Parameters!D27 -> 62.50960168 | C31: =Parameters!D24+Parameters!D28 -> 424.5096017 | H31: 0.09 | I31: 10 | J31: =MMULT(J30:M30,J$4:M$7) -> 0.5142549686 | K31: 0.1061213192 | L31: 0.3329119226 | M31: 0.04671178965 | N31: 1 | O31: 32.14587325 | P31: 14.8731614 | Q31: 144.2308596 | R31: 0 | S31: 0.03508859308 | T31: 0.004463332632 | U31: 0.00015607004 | V31: 0 | AA31: 0.09 | AB31: 10 | AC31: =MMULT(AC30:AF30,AC$4:AF$7) -> 0.3877073143 | AD31: 0.1647666305 | AE31: 0.414469496 | AF31: 0.03305655918 | AG31: 1 | AH31: 164.5854776 | AI31: 82.73796485 | AJ31: 164.5429957 | AK31: 0 | AL31: 0.02645400631 | AM31: 0.006929882554 | AN31: 0.0001943044584 | AO31: 0 | BA31: 23 | BB31: 17057.05765 | BC31: 0.7032635168 | BD31: 21830.37294 | BE31: 0.8077663577 | BJ31: 23 | BK31: 17057.05765 | BL31: 0.7032635168 | BM31: 21830.37294 | BN31: 0.8077663577 | BP31: 4040.847854 | BQ31: 2402.617787 | BR31: tx A | BX31: 22000 | BY31: 0.62496 | BZ31: 0.37504 | CA31: 1697.404776 | CB31: -2497.343176 | CC31: 0.62496
A32: ACTIVE | B32: =Parameters!D25+Parameters!D27 -> 140.152436 | C32: =Parameters!D25+Parameters!D28 -> 502.152436 | H32: 0.10 | I32: 11 | J32: =MMULT(J31:M31,J$4:M$7) -> 0.5042742543 | K32: 0.1010696814 | L32: 0.3439474018 | M32: 0.05070866253 | N32: 1 | O32: 31.52198277 | P32: 14.16516205 | Q32: 149.0118739 | R32: 0 | S32: 0.03440758999 | T32: 0.004250866936 | U32: 0.0001612435035 | V32: 0 | AA32: 0.10 | AB32: 11 | AC32: =MMULT(AC31:AF31,AC$4:AF$7) -> 0.3720583405 | AD32: 0.1548596939 | AE32: 0.434891395 | AF32: 0.03819057066 | AG32: 1 | AH32: 157.9423379 | AI32: 77.76317251 | AJ32: 172.650421 | AK32: 0 | AL32: 0.02538624711 | AM32: 0.006513208942 | AN32: 0.0002038783017 | AO32: 0 | BA32: 24 | BB32: 16365.91819 | BC32: 0.3032799242 | BD32: 21129.58114 | BE32: 0.3088312509 | BJ32: 24 | BK32: 16365.91819 | BL32: 0.3032799242 | BM32: 21129.58114 | BN32: 0.3088312509 | BP32: -7267.520469 | BQ32: -11864.64361 | BR32: tx A | BX32: 23000 | BY32: 0.61706 | BZ32: 0.38294 | CA32: 2493.030422 | CB32: -1653.091344 | CC32: 0.61706
A33: COMPL | B33: =Parameters!D26 -> 433.2402952 | C33: =Parameters!E26 -> 396.9966362 | H33: 0.11 | I33: 12 | J33: =MMULT(J32:M32,J$4:M$7) -> 0.4937273855 | K33: 0.0972257035 | L33: 0.3542899824 | M33: 0.05475692865 | N33: 1 | O33: 30.8627022 | P33: 13.62641919 | Q33: 153.4926965 | R33: 0 | S33: 0.0336879571 | T33: 0.004089193938 | U33: 0.0001660921342 | V33: 0 | AA33: 0.11 | AB33: 12 | AC33: =MMULT(AC32:AF32,AC$4:AF$7) -> 0.3563352247 | AD33: 0.1463995717 | AE33: 0.4538169508 | AF33: 0.04344825275 | AG33: 1 | AH33: 151.2677243 | AI33: 73.51490156 | AJ33: 180.1638029 | AK33: 0 | AL33: 0.02431342906 | AM33: 0.006157386572 | AN33: 0.0002127506552 | AO33: 0 | BA33: 25 | BB33: 12499.56273 | BC33: 2.060068686 | BD33: 20474.34621 | BE33: 1.671380477 | BJ33: 25 | BK33: 12499.56273 | BL33: 2.060068686 | BM33: 20474.34621 | BN33: 1.671380477 | BP33: 49302.49786 | BQ33: 29667.06809 | BR33: tx A | BX33: 24000 | BY33: 0.61003 | BZ33: 0.38997 | CA33: 3288.656068 | CB33: -808.8395113 | CC33: 0.61003
A34: DEAD | B34: 0 | C34: 0 | H34: 1.00 | I34: 13 | J34: =MMULT(J33:M33,J$4:M$7) -> 0.4829617209 | K34: 0.09410374839 | L34: 0.3640727426 | M34: 0.05886178814 | N34: =N22/(1+disc) -> 0.9661835749 | O34: 29.16883556 | P34: 12.74286915 | Q34: 152.3970845 | R34: 0 | S34: 0.03183902933 | T34: 0.003824046698 | U34: 0.0001649065889 | V34: 0 | AA34: 1.00 | AB34: 13 | AC34: =MMULT(AC33:AF33,AC$4:AF$7) -> 0.3408613572 | AD34: 0.1389128857 | AE34: 0.4714084816 | AF34: 0.04881727545 | AG34: =AG22/(1+disc) -> 0.9661835749 | AH34: 139.8057188 | AI34: 67.39656421 | AJ34: 180.8189193 | AK34: 0 | AL34: 0.02247112821 | AM34: 0.005644933077 | AN34: 0.0002135242648 | AO34: 0 | BA34: 26 | BB34: 16327.69997 | BC34: 0.5798778466 | BD34: 21807.0663 | BE34: 0.7951965232 | BJ34: 26 | BK34: 16327.69997 | BL34: 0.5798778466 | BM34: 21807.0663 | BN34: 0.7951965232 | BP34: 1068.635432 | BQ34: 2048.829398 | BR34: tx B | BX34: 25000 | BY34: 0.60358 | BZ34: 0.39642 | CA34: 4084.281715 | CB34: 35.41232124 | CC34: 0.60358
H35: 1.01 | I35: 14 | J35: =MMULT(J34:M34,J$4:M$7) -> 0.4721763401 | K35: 0.09142145264 | L35: 0.3733771657 | M35: 0.06302504158 | N35: 0.9661835749 | O35: 28.51744439 | P35: 12.37965149 | Q35: 156.2918198 | R35: 0 | S35: 0.03112800806 | T35: 0.003715047594 | U35: 0.0001691210232 | V35: 0 | AA35: 1.01 | AB35: 14 | AC35: =MMULT(AC34:AF34,AC$4:AF$7) -> 0.3258146935 | AD35: 0.1321143668 | AE35: 0.4877835716 | AF35: 0.05428736813 | AG35: 0.9661835749 | AH35: 133.6342664 | AI35: 64.09811701 | AJ35: 187.0999393 | AK35: 0 | AL35: 0.02147918383 | AM35: 0.005368665081 | AN35: 0.0002209413546 | AO35: 0 | BA35: 27 | BB35: 13329.07878 | BC35: 1.302404214 | BD35: 21431.90367 | BE35: 0.8700032934 | BJ35: 27 | BK35: 13329.07878 | BL35: 1.302404214 | BM35: 21431.90367 | BN35: 0.8700032934 | BP35: 25743.04764 | BQ35: 4668.195134 | BR35: tx A | BX35: 26000 | BY35: 0.5973 | BZ35: 0.4027 | CA35: 4879.907361 | CB35: 879.6641538 | CC35: 0.5973
A36: UTILITIES | B36: Value per month (converted) | C36: Value per year (reference) | H36: 1.02 | I36: 15 | J36: =MMULT(J35:M35,J$4:M$7) -> 0.4614843159 | K36: 0.08901444969 | L36: 0.3822546846 | M36: 0.06724654983 | N36: 0.9661835749 | O36: 27.87169156 | P36: 12.05371204 | Q36: 160.0078574 | R36: 0 | S36: 0.03042314129 | T36: 0.003617235426 | U36: 0.0001731420915 | V36: 0 | AA36: 1.02 | AB36: 15 | AC36: =MMULT(AC35:AF35,AC$4:AF$7) -> 0.3112877894 | AD36: 0.1258302246 | AE36: 0.5030323618 | AF36: 0.0598496242 | AG36: 0.9661835749 | AH36: 127.6759956 | AI36: 61.04923073 | AJ36: 192.9489425 | AK36: 0 | AL36: 0.02052150435 | AM36: 0.005113299556 | AN36: 0.0002278482874 | AO36: 0 | BA36: 28 | BB36: 18430.29838 | BC36: 0.4603230188 | BD36: 21552.06583 | BE36: 0.9754053916 | BJ36: 28 | BK36: 18430.29838 | BL36: 0.4603230188 | BM36: 21552.06583 | BN36: 0.9754053916 | BP36: -4620.607811 | BQ36: 7710.095914 | BR36: tx B | BX36: 27000 | BY36: 0.5913 | BZ36: 0.4087 | CA36: 5675.533007 | CB36: 1723.915986 | CC36: 0.5913
A37: SILENT | B37: =C37/12 -> 0.068231899 | C37: =Parameters!D32 -> 0.818782788 | H37: 1.03 | I37: 16 | J37: =MMULT(J36:M36,J$4:M$7) -> 0.4509488578 | K37: 0.08678687241 | L37: 0.3907391891 | M37: 0.07152508066 | N37: 0.9661835749 | O37: 27.23539467 | P37: 11.75206916 | Q37: 163.5593832 | R37: 0 | S37: 0.02972859606 | T37: 0.003526714488 | U37: 0.0001769851441 | V37: 0 | AA37: 1.03 | AB37: 16 | AC37: =MMULT(AC36:AF36,AC$4:AF$7) -> 0.2973232743 | AD37: 0.1199528223 | AE37: 0.5172278203 | AF37: 0.06549608312 | AG37: 0.9661835749 | AH37: 121.9483911 | AI37: 58.197683 | AJ37: 198.3939177 | AK37: 0 | AL37: 0.01960090012 | AM37: 0.004874462513 | AN37: 0.0002342781141 | AO37: 0 | BA37: 29 | BB37: 16098.15696 | BC37: 1.443980629 | BD37: 21040.13574 | BE37: 1.518473114 | BJ37: 29 | BK37: 16098.15696 | BL37: 1.443980629 | BM37: 21040.13574 | BN37: 1.518473114 | BP37: 27221.26192 | BQ37: 24514.05767 | BR37: tx A | BX37: 28000 | BY37: 0.58621 | BZ37: 0.41379 | CA37: 6471.158653 | CB37: 2568.167819 | CC37: 0.58621
A38: ACTIVE | B38: =C38/12 -> 0.04205877449 | C38: =Parameters!D33 -> 0.5047052939 | H38: 1.04 | I38: 17 | J38: =MMULT(J37:M37,J$4:M$7) -> 0.4406042893 | K38: 0.08468262334 | L38: 0.3988542882 | M38: 0.07585879917 | N38: 0.9661835749 | O38: 26.61062669 | P38: 11.46712652 | Q38: 166.9562798 | R38: 0 | S38: 0.02904663514 | T38: 0.003441205177 | U38: 0.0001806608747 | V38: 0 | AA38: 1.04 | AB38: 17 | AC38: =MMULT(AC37:AF37,AC$4:AF$7) -> 0.2839348024 | AD38: 0.1144138625 | AE38: 0.5304318582 | AF38: 0.07121947685 | AG38: 0.9661835749 | AH38: 116.457053 | AI38: 55.51033795 | AJ38: 203.458612 | AK38: 0 | AL38: 0.01871827127 | AM38: 0.004649378592 | AN38: 0.0002402588773 | AO38: 0 | BA38: 30 | BB38: 17588.8901 | BC38: 0.3937714109 | BD38: 21138.09921 | BE38: 0.5887108216 | BJ38: 30 | BK38: 17588.8901 | BL38: 0.3937714109 | BM38: 21138.09921 | BN38: 0.5887108216 | BP38: -5775.747775 | BQ38: -3476.774563 | BR38: tx B | BX38: 29000 | BY38: 0.58121 | BZ38: 0.41879 | CA38: 7266.7843 | CB38: 3412.419651 | CC38: 0.58121
A39: COMPL | B39: 0.0004688027955 | C39: =Parameters!D34 -> 0.005625633547 | H39: 1.05 | I39: 18 | J39: =MMULT(J38:M38,J$4:M$7) -> 0.4304682222 | K39: 0.08266869881 | L39: 0.4066175271 | M39: 0.08024555187 | N39: 0.9661835749 | O39: 25.99845131 | P39: 11.19441499 | Q39: 170.2058913 | R39: 0 | S39: 0.02837841958 | T39: 0.003359366339 | U39: 0.0001841772304 | V39: 0 | AA39: 1.05 | AB39: 18 | AC39: =MMULT(AC38:AF38,AC$4:AF$7) -> 0.2711194171 | AD39: 0.109168522 | AE39: 0.5426989871 | AF39: 0.07701307383 | AG39: 0.9661835749 | AH39: 111.2007688 | AI39: 52.96544856 | AJ39: 208.1639346 | AK39: 0 | AL39: 0.01787342288 | AM39: 0.004436226327 | AN39: 0.0002458152679 | AO39: 0 | BA39: 31 | BB39: 15053.0048 | BC39: 0.3974357306 | BD39: 21194.00928 | BE39: 0.1056630129 | BJ39: 31 | BK39: 15053.0048 | BL39: 0.3974357306 | BM39: 21194.00928 | BN39: 0.1056630129 | BP39: -3129.932879 | BQ39: -18024.11889 | BR39: tx A | BX39: 30000 | BY39: 0.57662 | BZ39: 0.42338 | CA39: 8062.409946 | CB39: 4256.671484 | CC39: 0.57662
A40: DEAD | B40: 0 | C40: 0 | H40: 1.06 | I40: 19 | J40: =MMULT(J39:M39,J$4:M$7) -> 0.420548622 | K40: 0.0807255097 | L40: 0.4140428377 | M40: 0.08468303061 | N40: 0.9661835749 | O40: 25.39934961 | P40: 10.93128196 | Q40: 173.3140495 | R40: 0 | S40: 0.02772447449 | T40: 0.00328040194 | U40: 0.0001875405215 | V40: 0 | AA40: 1.06 | AB40: 19 | AC40: =MMULT(AC39:AF39,AC$4:AF$7) -> 0.2588648387 | AD40: 0.1041860594 | AE40: 0.5540785211 | AF40: 0.08287058078 | AG40: 0.9661835749 | AH40: 106.174502 | AI40: 50.54810002 | AJ40: 212.5288011 | AK40: 0 | AL40: 0.01706554544 | AM40: 0.0042337565 | AN40: 0.0002509696229 | AO40: 0 | BA40: 32 | BB40: 17201.49166 | BC40: 0.6724937119 | BD40: 21230.82758 | BE40: 1.028476162 | BJ40: 32 | BK40: 17201.49166 | BL40: 0.6724937119 | BM40: 21230.82758 | BN40: 1.028476162 | BP40: 2973.319701 | BQ40: 9623.457277 | BR40: tx B | BX40: 31000 | BY40: 0.5724 | BZ40: 0.4276 | CA40: 8858.035592 | CB40: 5100.923316 | CC40: 0.5724
H41: 1.07 | I41: 20 | J41: =MMULT(J40:M40,J$4:M$7) -> 0.410847907 | K41: 0.078841263 | L41: 0.4211419629 | M41: 0.08916886711 | N41: 0.9661835749 | O41: 24.81346765 | P41: 10.6761305 | Q41: 176.2856699 | R41: 0 | S41: 0.02708495932 | T41: 0.003203832755 | U41: 0.0001907560672 | V41: 0 | AA41: 1.07 | AB41: 20 | AC41: =MMULT(AC40:AF40,AC$4:AF$7) -> 0.2471537518 | AD41: 0.09944425258 | AE41: 0.5646159165 | AF41: 0.08878607911 | AG41: 0.9661835749 | AH41: 101.3711505 | AI41: 48.2475108 | AJ41: 216.570647 | AK41: 0 | AL41: 0.01629349742 | AM41: 0.004041066081 | AN41: 0.0002557425315 | AO41: 0 | BA41: 33 | BB41: 17341.26755 | BC41: -0.8749177197 | BD41: 21460.01611 | BE41: -0.2600227128 | BJ41: 33 | BK41: 17341.26755 | BL41: -0.8749177197 | BM41: 21460.01611 | BN41: -0.2600227128 | BP41: -43588.79914 | BQ41: -29260.6975 | BR41: tx B | BX41: 32000 | BY41: 0.56801 | BZ41: 0.43199 | CA41: 9653.661239 | CB41: 5945.175149 | CC41: 0.56801
A42: Other parameters | B42: Values | H42: 1.08 | I42: 21 | J42: =MMULT(J41:M41,J$4:M$7) -> 0.4013653271 | K42: 0.07700870058 | L42: 0.4279252853 | M42: 0.09370068706 | N42: 0.9661835749 | O42: 24.24076012 | P42: 10.42797776 | Q42: 179.1250985 | R42: 0 | S42: 0.0264598246 | T42: 0.003129363837 | U42: 0.0001938285701 | V42: 0 | AA42: 1.08 | AB42: 21 | AC42: =MMULT(AC41:AF41,AC$4:AF$7) -> 0.2359663185 | AD42: 0.09492610041 | AE42: 0.5743535991 | AF42: 0.09475398198 | AG42: 0.9661835749 | AH42: 96.78257765 | AI42: 46.05543242 | AJ42: 220.3057458 | AK42: 0 | AL42: 0.01555597102 | AM42: 0.003857464203 | AN42: 0.0002601532105 | AO42: 0 | BA42: 34 | BB42: 14188.92686 | BC42: 0.3798448592 | BD42: 21840.293 | BE42: -0.5678198939 | BJ42: 34 | BK42: 14188.92686 | BL42: 0.3798448592 | BM42: 21840.293 | BN42: -0.5678198939 | BP42: -2793.581079 | BQ42: -38874.88981 | BR42: tx A | BX42: 33000 | BY42: 0.56415 | BZ42: 0.43585 | CA42: 10449.28688 | CB42: 6789.426981 | CC42: 0.56415
A43: discount rate | B43: 0.035 | H43: 1.09 | I43: 22 | J43: =MMULT(J42:M42,J$4:M$7) -> 0.3920983425 | K43: 0.07522320601 | L43: 0.4344023107 | M43: 0.09827614076 | N43: 0.9661835749 | O43: 23.68107363 | P43: 10.18619861 | Q43: 181.8363143 | R43: 0 | S43: 0.0258489029 | T43: 0.003056807592 | U43: 0.0001967623359 | V43: 0 | AA43: 1.09 | AB43: 22 | AC43: =MMULT(AC42:AF42,AC$4:AF$7) -> 0.225281644 | AD43: 0.09061786401 | AE43: 0.5833314882 | AF43: 0.1007690038 | AG43: 0.9661835749 | AH43: 92.40021348 | AI43: 43.96519919 | AJ43: 223.7494093 | AK43: 0 | AL43: 0.01485158877 | AM43: 0.003682392567 | AN43: 0.0002642197415 | AO43: 0 | BA43: 35 | BB43: 15237.77278 | BC43: 1.132444674 | BD43: 21441.26642 | BE43: 1.078337096 | BJ43: 35 | BK43: 15237.77278 | BL43: 1.132444674 | BM43: 21441.26642 | BN43: 1.078337096 | BP43: 18735.56745 | BQ43: 10908.84645 | BR43: tx A | BX43: 34000 | BY43: 0.56001 | BZ43: 0.43999 | CA43: 11244.91253 | CB43: 7633.678814 | CC43: 0.56001
A44: value per QALY | B44: 30000 | H44: 1.10 | I44: 23 | J44: =MMULT(J43:M43,J$4:M$7) -> 0.3830434237 | K44: 0.07348170546 | L44: 0.4405819506 | M44: 0.1028929203 | N44: 0.9661835749 | O44: 23.13419501 | P44: 9.950376832 | Q44: 184.4230477 | R44: 0 | S44: 0.02525196154 | T44: 0.00298603911 | U44: 0.0001995614011 | V44: 0 | AA44: 1.10 | AB44: 23 | AC44: =MMULT(AC43:AF43,AC$4:AF$7) -> 0.2150786239 | AD44: 0.08650790062 | AE44: 0.5915873382 | AF44: 0.1068261373 | AG44: 0.9661835749 | AH44: 88.21540188 | AI44: 41.97116235 | AJ44: 226.9161191 | AK44: 0 | AL44: 0.01417895936 | AM44: 0.003515378052 | AN44: 0.0002679592251 | AO44: 0 | BA44: 36 | BB44: 12238.75643 | BC44: 0.9565551473 | BD44: 21133.04128 | BE44: 0.1166622267 | BJ44: 36 | BK44: 12238.75643 | BL44: 0.9565551473 | BM44: 21133.04128 | BN44: 0.1166622267 | BP44: 16457.89799 | BQ44: -17633.17448 | BR44: tx A | BX44: 35000 | BY44: 0.5563 | BZ44: 0.4437 | CA44: 12040.53818 | CB44: 8477.930647 | CC44: 0.5563
A45: default value per QALY | B45: 30000 | H45: 1.11 | I45: 24 | J45: =MMULT(J44:M44,J$4:M$7) -> 0.3741965138 | K45: 0.07178202963 | L45: 0.4464726878 | M45: 0.1075487688 | N45: 0.9661835749 | O45: 22.59987925 | P45: 9.72021866 | Q45: 186.8888493 | R45: 0 | S45: 0.02466873308 | T45: 0.002916970238 | U45: 0.0002022296079 | V45: 0 | AA45: 1.11 | AB45: 24 | AC45: =MMULT(AC44:AF44,AC$4:AF$7) -> 0.205336426 | AD45: 0.08258596636 | AE45: 0.5991569721 | AF45: 0.1129206355 | AG45: 0.9661835749 | AH45: 84.21959846 | AI45: 40.06835187 | AJ45: 229.8196159 | AK45: 0 | AL45: 0.01353670945 | AM45: 0.003356004382 | AN45: 0.0002713878874 | AO45: 0 | BA45: 37 | BB45: 12654.01851 | BC45: 1.304440368 | BD45: 21133.11026 | BE45: 0.5114868273 | BJ45: 37 | BK45: 12654.01851 | BL45: 1.304440368 | BM45: 21133.11026 | BN45: 0.5114868273 | BP45: 26479.19251 | BQ45: -5788.505444 | BR45: tx A | BX45: 36000 | BY45: 0.55288 | BZ45: 0.44712 | CA45: 12836.16382 | CB45: 9322.182479 | CC45: 0.55288
H46: 2.00 | I46: 25 | J46: =MMULT(J45:M45,J$4:M$7) -> 0.3655532964 | K46: 0.0701225431 | L46: 0.4520826754 | M46: 0.112241485 | N46: 0.9335107004 | O46: 21.33127116 | P46: 9.174398686 | Q46: 182.8378088 | R46: 0 | S46: 0.02328399319 | T46: 0.002753173448 | U46: 0.000197846038 | V46: 0 | AA46: 2.00 | AB46: 25 | AC46: =MMULT(AC45:AF45,AC$4:AF$7) -> 0.1960347577 | AD46: 0.07884279677 | AE46: 0.606074449 | AF46: 0.1190479965 | AG46: 0.9335107004 | AH46: 77.68548801 | AI46: 36.95871779 | AJ46: 224.6115593 | AK46: 0 | AL46: 0.01248647463 | AM46: 0.003095550804 | AN46: 0.0002652378315 | AO46: 0 | BA46: 38 | BB46: 15693.89037 | BC46: 1.020447607 | BD46: 21810.52756 | BE46: 0.6575925964 | BJ46: 38 | BK46: 15693.89037 | BL46: 1.020447607 | BM46: 21810.52756 | BN46: 0.6575925964 | BP46: 14919.53783 | BQ46: -2082.749663 | BR46: tx A | BX46: 37000 | BY46: 0.54969 | BZ46: 0.45031 | CA46: 13631.78947 | CB46: 10166.43431 | CC46: 0.54969
H47: 2.01 | I47: 26 | J47: =MMULT(J46:M46,J$4:M$7) -> 0.3571093499 | K47: 0.06850192902 | L47: 0.4574197954 | M47: 0.1169689257 | N47: 0.9335107004 | O47: 20.83853832 | P47: 8.96236759 | Q47: 184.996324 | R47: 0 | S47: 0.02274615426 | T47: 0.002689544386 | U47: 0.0002001817348 | V47: 0 | AA47: 2.01 | AB47: 26 | AC47: =MMULT(AC46:AF46,AC$4:AF$7) -> 0.1871540065 | AD47: 0.07526985187 | AE47: 0.6123721915 | AF47: 0.1252039501 | AG47: 0.9335107004 | AH47: 74.16618614 | AI47: 35.28384744 | AJ47: 226.9455065 | AK47: 0 | AL47: 0.01192081334 | AM47: 0.002955268712 | AN47: 0.0002679939278 | AO47: 0 | BA47: 39 | BB47: 15536.42374 | BC47: 1.046872406 | BD47: 21441.28947 | BE47: 0.7317503666 | BJ47: 39 | BK47: 15536.42374 | BL47: 1.046872406 | BM47: 21441.28947 | BN47: 0.7317503666 | BP47: 15869.74844 | BQ47: 511.2215236 | BR47: tx A | BX47: 38000 | BY47: 0.54644 | BZ47: 0.45356 | CA47: 14427.41512 | CB47: 11010.68614 | CC47: 0.54644
H48: 2.02 | I48: 27 | J48: =MMULT(J47:M47,J$4:M$7) -> 0.3488602356 | K48: 0.06691906395 | L48: 0.4624916948 | M48: 0.1217290057 | N48: 0.9335107004 | O48: 20.3571746 | P48: 8.755275341 | Q48: 187.0475748 | R48: 0 | S48: 0.0222207252 | T48: 0.002627397437 | U48: 0.0002024013624 | V48: 0 | AA48: 2.02 | AB48: 27 | AC48: =MMULT(AC47:AF47,AC$4:AF$7) -> 0.1786753071 | AD48: 0.07185915876 | AE48: 0.6180810879 | AF48: 0.1313844462 | AG48: 0.9335107004 | AH48: 70.80621107 | AI48: 33.685035 | AJ48: 229.0612269 | AK48: 0 | AL48: 0.01138076082 | AM48: 0.002821357001 | AN48: 0.000270492326 | AO48: 0 | BA48: 40 | BB48: 13743.5244 | BC48: 1.15237731 | BD48: 20470.97212 | BE48: 0.7841481314 | BJ48: 40 | BK48: 13743.5244 | BL48: 1.15237731 | BM48: 20470.97212 | BN48: 0.7841481314 | BP48: 20827.79491 | BQ48: 3053.471819 | BR48: tx A | BX48: 39000 | BY48: 0.54366 | BZ48: 0.45634 | CA48: 15223.04076 | CB48: 11854.93798 | CC48: 0.54366
H49: 2.03 | I49: 28 | J49: =MMULT(J48:M48,J$4:M$7) -> 0.3408015482 | K49: 0.06537294501 | L49: 0.4673058084 | M49: 0.1265196983 | N49: 0.9335107004 | O49: 19.88692295 | P49: 8.552990726 | Q49: 188.9945683 | R49: 0 | S49: 0.02170742544 | T49: 0.002566693227 | U49: 0.0002045081746 | V49: 0 | AA49: 2.03 | AB49: 28 | AC49: =MMULT(AC48:AF48,AC$4:AF$7) -> 0.1705805654 | AD49: 0.06860321233 | AE49: 0.6232305784 | AF49: 0.1375856439 | AG49: 0.9335107004 | AH49: 67.59839236 | AI49: 32.15876234 | AJ49: 230.9696312 | AK49: 0 | AL49: 0.01086516456 | AM49: 0.002693521003 | AN49: 0.00027274591 | AO49: 0 | BA49: 41 | BB49: 15048.11554 | BC49: 0.8657305298 | BD49: 21028.54551 | BE49: 0.6361891429 | BJ49: 41 | BK49: 15048.11554 | BL49: 0.8657305298 | BM49: 21028.54551 | BN49: 0.6361891429 | BP49: 10923.80035 | BQ49: -1942.871221 | BR49: tx A | BX49: 40000 | BY49: 0.54093 | BZ49: 0.45907 | CA49: 16018.66641 | CB49: 12699.18981 | CC49: 0.54093
H50: 2.04 | I50: 29 | J50: =MMULT(J49:M49,J$4:M$7) -> 0.3329289445 | K50: 0.06386264737 | L50: 0.4718693742 | M50: 0.131339034 | N50: 0.9335107004 | O50: 19.42752989 | P50: 8.355392749 | Q50: 190.8402315 | R50: 0 | S50: 0.02120597831 | T50: 0.002507395444 | U50: 0.000206505339 | V50: 0 | AA50: 2.04 | AB50: 29 | AC50: =MMULT(AC49:AF49,AC$4:AF$7) -> 0.1628524574 | AD50: 0.06549491051 | AE50: 0.6278487308 | AF50: 0.1438039013 | AG50: 0.9335107004 | AH50: 64.53586483 | AI50: 30.70170026 | AJ50: 232.6811213 | AK50: 0 | AL50: 0.01037292112 | AM50: 0.002571481875 | AN50: 0.0002747669632 | AO50: 0 | BA50: 42 | BB50: 15967.87887 | BC50: 1.496322171 | BD50: 20789.86168 | BE50: 1.324972151 | BJ50: 42 | BK50: 15967.87887 | BL50: 1.496322171 | BM50: 20789.86168 | BN50: 1.324972151 | BP50: 28921.78627 | BQ50: 18959.30284 | BR50: tx A | BX50: 41000 | BY50: 0.5384 | BZ50: 0.4616 | CA50: 16814.29206 | CB50: 13543.44164 | CC50: 0.5384
H51: 2.05 | I51: 30 | J51: =MMULT(J50:M50,J$4:M$7) -> 0.3252381578 | K51: 0.06238729946 | L51: 0.4761894433 | M51: 0.1361850994 | N51: 0.9335107004 | O51: 18.97874648 | P51: 8.162367377 | Q51: 192.5874163 | R51: 0 | S51: 0.02071611205 | T51: 0.002449469868 | U51: 0.0002083959413 | V51: 0 | AA51: 2.05 | AB51: 30 | AC51: =MMULT(AC50:AF50,AC$4:AF$7) -> 0.1554744148 | AD51: 0.06252751025 | AE51: 0.6319623086 | AF51: 0.1500357663 | AG51: 0.9335107004 | AH51: 61.61206274 | AI51: 29.31068785 | AJ51: 234.2056158 | AK51: 0 | AL51: 0.009902975163 | AM51: 0.002454974868 | AN51: 0.0002765671983 | AO51: 0 | BA51: 43 | BB51: 12935.77676 | BC51: 2.094172605 | BD51: 21703.0225 | BE51: 1.319993633 | BJ51: 43 | BK51: 12935.77676 | BL51: 2.094172605 | BM51: 21703.0225 | BN51: 1.319993633 | BP51: 49889.40141 | BQ51: 17896.78648 | BR51: tx A | BX51: 42000 | BY51: 0.53594 | BZ51: 0.46406 | CA51: 17609.9177 | CB51: 14387.69347 | CC51: 0.53594
H52: 2.06 | I52: 31 | J52: =MMULT(J51:M51,J$4:M$7) -> 0.3177250068 | K52: 0.06094606832 | L52: 0.4802728883 | M52: 0.1410560366 | N52: 0.9335107004 | O52: 18.54032871 | P52: 7.973805633 | Q52: 194.2389021 | R52: 0 | S52: 0.02023756034 | T52: 0.002392883795 | U52: 0.0002101829892 | V52: 0 | AA52: 2.06 | AB52: 31 | AC52: =MMULT(AC51:AF51,AC$4:AF$7) -> 0.1484306029 | AD52: 0.05969459603 | AE52: 0.6355968338 | AF52: 0.1562779673 | AG52: 0.9335107004 | AH52: 58.82071096 | AI52: 27.98271774 | AJ52: 235.552573 | AK52: 0 | AL52: 0.009454318096 | AM52: 0.002343748094 | AN52: 0.0002781577844 | AO52: 0 | BA52: 44 | BB52: 15080.08994 | BC52: 1.182472952 | BD52: 20271.06736 | BE52: 1.318007342 | BJ52: 44 | BK52: 15080.08994 | BL52: 1.182472952 | BM52: 20271.06736 | BN52: 1.318007342 | BP52: 20394.09862 | BQ52: 19269.15289 | BR52: tx A | BX52: 43000 | BY52: 0.53369 | BZ52: 0.46631 | CA52: 18405.54335 | CB52: 15231.94531 | CC52: 0.53369
H53: 2.07 | I53: 32 | J53: =MMULT(J52:M52,J$4:M$7) -> 0.3103853989 | K53: 0.059538151 | L53: 0.4841264088 | M53: 0.1459500413 | N53: 0.9335107004 | O53: 18.11203776 | P53: 7.789602462 | Q53: 195.7973985 | R53: 0 | S53: 0.01977006249 | T53: 0.0023376057 | U53: 0.0002118694148 | V53: 0 | AA53: 2.07 | AB53: 32 | AC53: =MMULT(AC52:AF52,AC$4:AF$7) -> 0.1417058937 | AD53: 0.05699005602 | AE53: 0.6387766453 | AF53: 0.1625274049 | AG53: 0.9335107004 | AH53: 56.15581461 | AI53: 26.71492493 | AJ53: 236.7310131 | AK53: 0 | AL53: 0.009025986351 | AM53: 0.00223756159 | AN53: 0.000279549373 | AO53: 0 | BA53: 45 | BB53: 17973.86756 | BC53: -0.04980831968 | BD53: 21993.78134 | BE53: 0.5358592255 | BJ53: 45 | BK53: 17973.86756 | BL53: -0.04980831968 | BM53: 21993.78134 | BN53: 0.5358592255 | BP53: -19468.11715 | BQ53: -5918.004579 | BR53: tx B | BX53: 44000 | BY53: 0.53136 | BZ53: 0.46864 | CA53: 19201.16899 | CB53: 16076.19714 | CC53: 0.53136
H54: 2.08 | I54: 33 | J54: =MMULT(J53:M53,J$4:M$7) -> 0.3032153314 | K54: 0.05816276929 | L54: 0.4877565373 | M54: 0.1508653621 | N54: 0.9335107004 | O54: =c_sil_A*J54*N54 -> 17.69364007 | P54: =c_act_A*K54*N54 -> 7.609656048 | Q54: =c_compl_A*L54*N54 -> 197.2655476 | R54: =c_dead_A*M54*N54 -> 0 | S54: =u_sil*J54*N54 -> 0.01931336355 | T54: =u_act*K54*N54 -> 0.002283605029 | U54: =u_compl*L54*N54 -> 0.0002134580767 | V54: =u_dead*M54*N54 -> 0 | AA54: 2.08 | AB54: 33 | AC54: =MMULT(AC53:AF53,AC$4:AF$7) -> 0.135285839 | AD54: 0.05440806299 | AE54: 0.6415249539 | AF54: 0.1687811441 | AG54: 0.9335107004 | AH54: =c_sil_B*AC54*AG54 -> 53.61164802 | AI54: =c_act_B*AD54*AG54 -> 25.50457781 | AJ54: =c_compl_B*AE54*AG54 -> 237.7495379 | AK54: =c_dead_B*AF54*AG54 -> 0 | AL54: =u_sil*AC54*AG54 -> 0.008617059633 | AM54: =u_act*AD54*AG54 -> 0.002136186564 | AN54: =u_compl*AE54*AG54 -> 0.0002807521219 | AO54: =u_dead*AF54*AG54 -> 0 | BA54: 46 | BB54: 16835.19355 | BC54: 0.5855682889 | BD54: 20874.82299 | BE54: 0.9847349179 | BJ54: 46 | BK54: 16835.19355 | BL54: 0.5855682889 | BM54: 20874.82299 | BN54: 0.9847349179 | BP54: 731.8551142 | BQ54: 8667.224542 | BR54: tx B | BX54: 45000 | BY54: 0.52918 | BZ54: 0.47082 | CA54: 19996.79464 | CB54: 16920.44897 | CC54: 0.52918
H55: 2.09 | I55: 34 | J55: =MMULT(J54:M54,J$4:M$7) -> 0.2962108915 | K55: 0.05681916661 | L55: 0.4911696433 | M55: 0.1558002986 | N55: 0.9335107004 | O55: 17.28490732 | P55: 7.433867405 | Q55: 198.6459252 | R55: 0 | S55: 0.01886721429 | T55: 0.002230852076 | U55: 0.0002149517626 | V55: 0 | AA55: 2.09 | AB55: 34 | AC55: =MMULT(AC54:AF54,AC$4:AF$7) -> 0.1291566414 | AD55: 0.0519430583 | AE55: 0.6438638944 | AF55: 0.1750364059 | AG55: 0.9335107004 | AH55: 51.18274349 | AI55: 24.3490707 | AJ55: 238.6163507 | AK55: 0 | AL55: 0.008226659116 | AM55: 0.002039404771 | AN55: 0.0002817757181 | AO55: 0 | BA55: 47 | BB55: 17508.83683 | BC55: 1.201791817 | BD55: 21365.677 | BE55: 1.373157462 | BJ55: 47 | BK55: 17508.83683 | BL55: 1.201791817 | BM55: 21365.677 | BN55: 1.373157462 | BP55: 18544.91769 | BQ55: 19829.04687 | BR55: tx B | BX55: 46000 | BY55: 0.52683 | BZ55: 0.47317 | CA55: 20792.42029 | CB55: 17764.7008 | CC55: 0.52683
H56: 2.10 | I56: 35 | J56: =MMULT(J55:M55,J$4:M$7) -> 0.2893682552 | K56: 0.05550660593 | L56: 0.4943719381 | M56: 0.1607532008 | N56: 0.9335107004 | O56: 16.88561635 | P56: 7.262140105 | Q56: 199.9410436 | R56: 0 | S56: 0.01843137115 | T56: 0.002179317904 | U56: 0.0002163531906 | V56: 0 | AA56: 2.10 | AB56: 35 | AC56: =MMULT(AC55:AF55,AC$4:AF$7) -> 0.1233051264 | AD56: 0.04958973781 | AE56: 0.6458145749 | AF56: 0.1812905609 | AG56: 0.9335107004 | AH56: 48.86388024 | AI56: 23.24591719 | AJ56: 239.3392741 | AK56: 0 | AL56: 0.007853945653 | AM56: 0.001947007958 | AN56: 0.0002826293991 | AO56: 0 | BA56: 48 | BB56: 13957.35574 | BC56: 1.900421393 | BD56: 21282.79401 | BE56: 1.498858739 | BJ56: 48 | BK56: 13957.35574 | BL56: 1.900421393 | BM56: 21282.79401 | BN56: 1.498858739 | BP56: 43055.28606 | BQ56: 23682.96817 | BR56: tx A | BX56: 47000 | BY56: 0.52459 | BZ56: 0.47541 | CA56: 21588.04593 | CB56: 18608.95264 | CC56: 0.52459
H57: 2.11 | I57: 36 | J57: =MMULT(J56:M56,J$4:M$7) -> 0.282683686 | K57: 0.05422436848 | L57: 0.4973694781 | M57: 0.1657224674 | N57: 0.9335107004 | O57: 16.49554913 | P57: 7.094380109 | Q57: 201.153352 | R57: 0 | S57: 0.01800559613 | T57: 0.002128974292 | U57: 0.0002176650113 | V57: 0 | AA57: 2.11 | AB57: 36 | AC57: =MMULT(AC56:AF56,AC$4:AF$7) -> 0.1177187153 | AD57: 0.04734303929 | AE57: 0.6473971238 | AF57: 0.1875411216 | AG57: 0.9335107004 | AH57: 46.65007347 | AI57: 22.19274429 | AJ57: 239.9257677 | AK57: 0 | AL57: 0.007498118038 | AM57: 0.00185879737 | AN57: 0.0002833219739 | AO57: 0 | BA57: 49 | BB57: 15586.2605 | BC57: 0.9511771576 | BD57: 22381.9578 | BE57: 0.8702681358 | BJ57: 49 | BK57: 15586.2605 | BL57: 0.9511771576 | BM57: 22381.9578 | BN57: 0.8702681358 | BP57: 12949.05422 | BQ57: 3726.086275 | BR57: tx A | BX57: 48000 | BY57: 0.52264 | BZ57: 0.47736 | CA57: 22383.67158 | CB57: 19453.20447 | CC57: 0.52264
H58: 3.00 | I58: 37 | J58: =MMULT(J57:M57,J$4:M$7) -> 0.2761535332 | K58: 0.0529717528 | L58: 0.5001681691 | M58: 0.1707065449 | N58: 0.9019427057 | O58: 15.56955809 | P58: 6.696131055 | Q58: 195.4446755 | R58: 0 | S58: 0.01699483738 | T58: 0.002009462511 | U58: 0.0002114877384 | V58: 0 | AA58: 3.00 | AB58: 37 | AC58: =MMULT(AC57:AF57,AC$4:AF$7) -> 0.1123853985 | AD58: 0.04519813081 | AE58: 0.6486307347 | AF58: 0.193785736 | AG58: 0.9019427057 | AH58: 43.0304966 | AI58: 20.47080867 | AJ58: 232.2540527 | AK58: 0 | AL58: 0.006916339433 | AM58: 0.001714573233 | AN58: 0.0002742626493 | AO58: 0 | BA58: 50 | BB58: 17434.4901 | BC58: 0.04332776904 | BD58: 21265.03849 | BE58: 0.6645003103 | BJ58: 50 | BK58: 17434.4901 | BL58: 0.04332776904 | BM58: 21265.03849 | BN58: 0.6645003103 | BP58: -16134.65703 | BQ58: -1330.029181 | BR58: tx B | BX58: 49000 | BY58: 0.52072 | BZ58: 0.47928 | CA58: 23179.29723 | CB58: 20297.4563 | CC58: 0.52072
H59: 3.01 | I59: 38 | J59: =MMULT(J58:M58,J$4:M$7) -> 0.26977423 | K59: 0.05174807405 | L59: 0.5027737699 | M59: 0.1757039261 | N59: 0.9019427057 | O59: 15.20989247 | P59: 6.541446475 | Q59: 196.4628346 | R59: 0 | S59: 0.016602247 | T59: 0.001963042741 | U59: 0.0002125894731 | V59: 0 | AA59: 3.01 | AB59: 38 | AC59: =MMULT(AC58:AF58,AC$4:AF$7) -> 0.1072937099 | AD59: 0.0431503999 | AE59: 0.6495337086 | AF59: 0.2000221815 | AG59: 0.9019427057 | AH59: 41.08097389 | AI59: 19.54336528 | AJ59: 232.577379 | AK59: 0 | AL59: 0.006602990486 | AM59: 0.00163689337 | AN59: 0.0002746444567 | AO59: 0 | BA59: 51 | BB59: 15203.32701 | BC59: 1.142597703 | BD59: 21201.63124 | BE59: 1.213657231 | BJ59: 51 | BK59: 15203.32701 | BL59: 1.142597703 | BM59: 21201.63124 | BN59: 1.213657231 | BP59: 19074.60407 | BQ59: 15208.08567 | BR59: tx A | BX59: 50000 | BY59: 0.51884 | BZ59: 0.48116 | CA59: 23974.92287 | CB59: 21141.70813 | CC59: 0.51884
H60: 3.02 | I60: 39 | J60: =MMULT(J59:M59,J$4:M$7) -> 0.263542292 | K60: 0.05055266342 | L60: 0.5051918955 | M60: 0.1807131491 | N60: 0.9019427057 | O60: 14.85853532 | P60: 6.390335255 | Q60: 197.4077363 | R60: 0 | S60: 0.01621872566 | T60: 0.001917695312 | U60: 0.000213611937 | V60: 0 | AA60: 3.02 | AB60: 39 | AC60: =MMULT(AC59:AF59,AC$4:AF$7) -> 0.102432703 | AD60: 0.04119544339 | AE60: 0.6501234952 | AF60: 0.2062483584 | AG60: 0.9019427057 | AH60: 39.2197753 | AI60: 18.6579406 | AJ60: 232.7885629 | AK60: 0 | AL60: 0.006303837973 | AM60: 0.001562732867 | AN60: 0.0002748938381 | AO60: 0 | BA60: 52 | BB60: 15193.39758 | BC60: 1.419438599 | BD60: 21230.42569 | BE60: 1.322817107 | BJ60: 52 | BK60: 15193.39758 | BL60: 1.419438599 | BM60: 21230.42569 | BN60: 1.322817107 | BP60: 27389.76039 | BQ60: 18454.08752 | BR60: tx A | BX60: 51000 | BY60: 0.5171 | BZ60: 0.4829 | CA60: 24770.54852 | CB60: 21985.95997 | CC60: 0.5171
H61: 3.03 | I61: 40 | J61: =MMULT(J60:M60,J$4:M$7) -> 0.2574543152 | K61: 0.04938486773 | L61: 0.5074280209 | M61: 0.1857327961 | N61: 0.9019427057 | O61: 14.5152947 | P61: 6.242714824 | Q61: 198.2815201 | R61: 0 | S61: 0.01584406388 | T61: 0.001873395443 | U61: 0.0002145574452 | V61: 0 | AA61: 3.03 | AB61: 40 | AC61: =MMULT(AC60:AF60,AC$4:AF$7) -> 0.09779192657 | AD61: 0.0393290578 | AE61: 0.6504167313 | AF61: 0.2124622844 | AG61: 0.9019427057 | AH61: 37.44289934 | AI61: 17.81263081 | AJ61: 232.8935614 | AK61: 0 | AL61: 0.00601823873 | AM61: 0.001491932267 | AN61: 0.000275017828 | AO61: 0 | BA61: 53 | BB61: 16804.7977 | BC61: 1.470702632 | BD61: 21042.16618 | BE61: 1.55610746 | BJ61: 53 | BK61: 16804.7977 | BL61: 1.470702632 | BM61: 21042.16618 | BN61: 1.55610746 | BP61: 27316.28125 | BQ61: 25641.05761 | BR61: tx A | BX61: 52000 | BY61: 0.5152 | BZ61: 0.4848 | CA61: 25566.17416 | CB61: 22830.2118 | CC61: 0.5152
H62: 3.04 | I62: 41 | J62: =MMULT(J61:M61,J$4:M$7) -> 0.251506974 | K62: 0.04824404894 | L62: 0.5094874845 | M62: 0.1907614926 | N62: 0.9019427057 | O62: 14.17998313 | P62: 6.098504528 | Q62: 199.0862718 | R62: 0 | S62: 0.01547805698 | T62: 0.001830118933 | U62: 0.0002154282549 | V62: 0 | AA62: 3.04 | AB62: 41 | AC62: =MMULT(AC61:AF61,AC$4:AF$7) -> 0.09336140323 | AD62: 0.03754723021 | AE62: 0.6504292777 | AF62: 0.2186620889 | AG62: 0.9019427057 | AH62: 35.74652578 | AI62: 17.00561842 | AJ62: 232.8980538 | AK62: 0 | AL62: 0.005745578726 | AM62: 0.001424339341 | AN62: 0.0002750231331 | AO62: 0 | BA62: 54 | BB62: 16277.48993 | BC62: 1.35561836 | BD62: 20974.43754 | BE62: 1.362630964 | BJ62: 54 | BK62: 16277.48993 | BL62: 1.35561836 | BM62: 20974.43754 | BN62: 1.362630964 | BP62: 24391.06086 | BQ62: 19904.49139 | BR62: tx A | BX62: 53000 | BY62: 0.51348 | BZ62: 0.48652 | CA62: 26361.79981 | CB62: 23674.46363 | CC62: 0.51348
H63: 3.05 | I63: 42 | J63: =MMULT(J62:M62,J$4:M$7) -> 0.2456970197 | K63: 0.0471295838 | L63: 0.5113754908 | M63: 0.1957979057 | N63: 0.9019427057 | O63: 13.85241745 | P63: 5.957625583 | Q63: 199.8240252 | R63: 0 | S63: 0.01512050505 | T63: 0.001787842139 | U63: 0.0002162265668 | V63: 0 | AA63: 3.05 | AB63: 42 | AC63: =MMULT(AC62:AF62,AC$4:AF$7) -> 0.08913160737 | AD63: 0.03584612955 | AE63: 0.6501762551 | AF63: 0.224846008 | AG63: 0.9019427057 | AH63: 34.12700742 | AI63: 16.23516828 | AJ63: 232.8074545 | AK63: 0 | AL63: 0.005485271744 | AM63: 0.00135980876 | AN63: 0.0002749161467 | AO63: 0 | BA63: 55 | BB63: 13232.29134 | BC63: 1.531001863 | BD63: 21768.10766 | BE63: 0.8740781033 | BJ63: 55 | BK63: 13232.29134 | BL63: 1.531001863 | BM63: 21768.10766 | BN63: 0.8740781033 | BP63: 32697.76455 | BQ63: 4454.235438 | BR63: tx A | BX63: 54000 | BY63: 0.51192 | BZ63: 0.48808 | CA63: 27157.42546 | CB63: 24518.71546 | CC63: 0.51192
H64: 3.06 | I64: 43 | J64: =MMULT(J63:M63,J$4:M$7) -> 0.2400212786 | K64: 0.04604086349 | L64: 0.5130971143 | M64: 0.2008407436 | N64: 0.9019427057 | O64: 13.53241871 | P64: 5.820001029 | Q64: 200.4967632 | R64: 0 | S64: 0.01477121278 | T64: 0.001746541964 | U64: 0.0002169545265 | V64: 0 | AA64: 3.06 | AB64: 43 | AC64: =MMULT(AC63:AF63,AC$4:AF$7) -> 0.08509344496 | AD64: 0.0342220984 | AE64: 0.6496720774 | AF64: 0.2310123793 | AG64: 0.9019427057 | AH64: 32.58086231 | AI64: 15.4996239 | AJ64: 232.6269245 | AK64: 0 | AL64: 0.005236758127 | AM64: 0.00129820178 | AN64: 0.0002747029636 | AO64: 0 | BA64: 56 | BB64: 18629.26192 | BC64: 0.6850662096 | BD64: 21650.12423 | BE64: 1.02483358 | BJ64: 56 | BK64: 18629.26192 | BL64: 0.6850662096 | BM64: 21650.12423 | BN64: 1.02483358 | BP64: 1922.724368 | BQ64: 9094.883173 | BR64: tx B | BX64: 55000 | BY64: 0.51026 | BZ64: 0.48974 | CA64: 27953.0511 | CB64: 25362.9673 | CC64: 0.51026
H65: 3.07 | I65: 44 | J65: =MMULT(J64:M64,J$4:M$7) -> 0.2344766504 | K65: 0.04497729327 | L65: 0.5146573021 | M65: 0.2058887543 | N65: 0.9019427057 | O65: 13.21981213 | P65: 5.685555684 | Q65: 201.106419 | R65: 0 | S65: 0.01442998935 | T65: 0.001706195848 | U65: 0.0002176142258 | V65: 0 | AA65: 3.07 | AB65: 44 | AC65: =MMULT(AC64:AF64,AC$4:AF$7) -> 0.08123823396 | AD65: 0.03267164503 | AE65: 0.648930484 | AF65: 0.237159637 | AG65: 0.9019427057 | AH65: 31.10476625 | AI65: 14.79740384 | AJ65: 232.3613834 | AK65: 0 | AL65: 0.00499950357 | AM65: 0.001239385944 | AN65: 0.0002743893932 | AO65: 0 | BA65: 57 | BB65: 15250.35576 | BC65: 1.201379098 | BD65: 19823.5308 | BE65: 1.268165823 | BJ65: 57 | BK65: 15250.35576 | BL65: 1.201379098 | BM65: 19823.5308 | BN65: 1.268165823 | BP65: 20791.01718 | BQ65: 18221.44389 | BR65: tx A | BX65: 56000 | BY65: 0.50872 | BZ65: 0.49128 | CA65: 28748.67675 | CB65: 26207.21913 | CC65: 0.50872
H66: 3.08 | I66: 45 | J66: =MMULT(J65:M65,J$4:M$7) -> 0.2290601062 | K66: 0.04393829215 | L66: 0.5160608771 | M66: 0.2109407246 | N66: =N54/(1+disc) -> 0.9019427057 | O66: 12.91442694 | P66: 5.554216105 | Q66: 201.654877 | R66: 0 | S66: 0.01409664837 | T66: 0.001666781751 | U66: 0.000218207704 | V66: 0 | AA66: 3.08 | AB66: 45 | AC66: =MMULT(AC65:AF65,AC$4:AF$7) -> 0.07755768564 | AD66: 0.03119143594 | AE66: 0.6479645707 | AF66: 0.2432863077 | AG66: =AG54/(1+disc) -> 0.9019427057 | AH66: 29.69554562 | AI66: 14.1269983 | AJ66: 232.0155206 | AK66: 0 | AL66: 0.004772997976 | AM66: 0.001183234797 | AN66: 0.000273980973 | AO66: 0 | BA66: 58 | BB66: 14616.8161 | BC66: 0.1279747199 | BD66: 21050.895 | BE66: 0.03169802705 | BJ66: 58 | BK66: 14616.8161 | BL66: 0.1279747199 | BM66: 21050.895 | BN66: 0.03169802705 | BP66: -10777.5745 | BQ66: -20099.95419 | BR66: tx A | BX66: 57000 | BY66: 0.50729 | BZ66: 0.49271 | CA66: 29544.3024 | CB66: 27051.47096 | CC66: 0.50729
H67: 3.09 | I67: 46 | J67: =MMULT(J66:M66,J$4:M$7) -> 0.2237686872 | K67: 0.04292329255 | L67: 0.5173125409 | M67: 0.2159954793 | N67: 0.9019427057 | O67: 12.61609632 | P67: 5.425910547 | Q67: 202.1439746 | R67: 0 | S67: 0.01377100777 | T67: 0.001628278142 | U67: 0.0002187369491 | V67: 0 | AA67: 3.09 | AB67: 46 | AC67: =MMULT(AC66:AF66,AC$4:AF$7) -> 0.07404388683 | AD67: 0.02977828865 | AE67: 0.6467868189 | AF67: 0.2493910056 | AG67: 0.9019427057 | AH67: 28.3501706 | AI67: 13.48696591 | AJ67: 231.5938051 | AK67: 0 | AL67: 0.004556754357 | AM67: 0.001129627613 | AN67: 0.0002734829804 | AO67: 0 | BA67: 59 | BB67: 15543.95638 | BC67: 0.344081495 | BD67: 21083.36499 | BE67: 0.4942773619 | BJ67: 59 | BK67: 15543.95638 | BL67: 0.344081495 | BM67: 21083.36499 | BN67: 0.4942773619 | BP67: -5221.511533 | BQ67: -6255.044135 | BR67: tx A | BX67: 58000 | BY67: 0.50584 | BZ67: 0.49416 | CA67: 30339.92804 | CB67: 27895.72279 | CC67: 0.50584
H68: 3.10 | I68: 47 | J68: =MMULT(J67:M67,J$4:M$7) -> 0.2185995031 | K68: 0.04193174003 | L68: 0.518416877 | M68: 0.2210518799 | N68: 0.9019427057 | O68: 12.32465731 | P68: 5.300568921 | Q68: 202.5755027 | R68: 0 | S68: 0.01345288964 | T68: 0.001590663989 | U68: 0.0002192038991 | V68: 0 | AA68: 3.10 | AB68: 47 | AC68: =MMULT(AC67:AF67,AC$4:AF$7) -> 0.07068928283 | AD68: 0.02842916488 | AE68: 0.6454091237 | AF68: 0.2554724286 | AG68: 0.9019427057 | AH68: 27.06574862 | AI68: 12.87593059 | AJ68: 231.1004963 | AK68: 0 | AL68: 0.004350307788 | AM68: 0.001078449136 | AN68: 0.000272900445 | AO68: 0 | BA68: 60 | BB68: 15395.71716 | BC68: 0.9722034812 | BD68: 20938.10718 | BE68: 0.9812916366 | BJ68: 60 | BK68: 15395.71716 | BL68: 0.9722034812 | BM68: 20938.10718 | BN68: 0.9812916366 | BP68: 13770.38727 | BQ68: 8500.64192 | BR68: tx A | BX68: 59000 | BY68: 0.50441 | BZ68: 0.49559 | CA68: 31135.55369 | CB68: 28739.97463 | CC68: 0.50441
H69: 3.11 | I69: 48 | J69: =MMULT(J68:M68,J$4:M$7) -> 0.21354973 | K69: 0.04096309294 | L69: 0.5193783531 | M69: 0.2261088239 | N69: 0.9019427057 | O69: 12.03995071 | P69: 5.178122759 | Q69: 202.9512071 | R69: 0 | S69: 0.01314212023 | T69: 0.001553918745 | U69: 0.0002196104432 | V69: 0 | AA69: 3.11 | AB69: 48 | AC69: =MMULT(AC68:AF68,AC$4:AF$7) -> 0.06748666123 | AD69: 0.027141164 | AE69: 0.6438428207 | AF69: 0.261529354 | AG69: 0.9019427057 | AH69: 25.83951817 | AI69: 12.2925786 | AJ69: 230.5396529 | AK69: 0 | AL69: 0.004153214408 | AM69: 0.001029589332 | AN69: 0.00027223816 | AO69: 0 | BA69: 61 | BB69: 14560.55294 | BC69: 0.5039352974 | BD69: 21630.70413 | BE69: 0.3635766063 | BJ69: 61 | BK69: 14560.55294 | BL69: 0.5039352974 | BM69: 21630.70413 | BN69: 0.3635766063 | BP69: 557.5059873 | BQ69: -10723.40595 | BR69: tx A | BX69: 60000 | BY69: 0.5032 | BZ69: 0.4968 | CA69: 31931.17933 | CB69: 29584.22646 | CC69: 0.5032
H70: 4.00 | I70: 49 | J70: =MMULT(J69:M69,J$4:M$7) -> 0.2086166096 | K70: 0.04001682215 | L70: 0.5202013242 | M70: 0.231165244 | N70: 0.8714422277 | O70: 11.36407825 | P70: 4.887444611 | Q70: 196.3988305 | R70: 0 | S70: 0.01240437658 | T70: 0.001466688247 | U70: 0.0002125202152 | V70: 0 | AA70: 4.00 | AB70: 49 | AC70: =MMULT(AC69:AF69,AC$4:AF$7) -> 0.06442913638 | AD70: 0.0259115168 | AE70: 0.6420987113 | AF70: 0.2675606355 | AG70: 0.8714422277 | AH70: 23.83463077 | AI70: 11.33879781 | AJ70: 222.1402346 | AK70: 0 | AL70: 0.003830966633 | AM70: 0.0009497035278 | AN70: 0.0002623195097 | AO70: 0 | BA70: 62 | BB70: 15828.53219 | BC70: 0.6586805308 | BD70: 21443.65314 | BE70: 0.9529859844 | BJ70: 62 | BK70: 15828.53219 | BL70: 0.6586805308 | BM70: 21443.65314 | BN70: 0.9529859844 | BP70: 3931.883728 | BQ70: 7145.926395 | BR70: tx B | BX70: 61000 | BY70: 0.50181 | BZ70: 0.49819 | CA70: 32726.80498 | CB70: 30428.47829 | CC70: 0.50181
H71: 4.01 | I71: 50 | J71: =MMULT(J70:M70,J$4:M$7) -> 0.2037974471 | K71: 0.03909241076 | L71: 0.5208900353 | M71: 0.2362201069 | N71: 0.8714422277 | O71: 11.10156156 | P71: 4.774541856 | Q71: 196.6588491 | R71: 0 | S71: 0.01211782841 | T71: 0.001432806913 | U71: 0.0002128015775 | V71: 0 | AA71: 4.01 | AB71: 50 | AC71: =MMULT(AC70:AF70,AC$4:AF$7) -> 0.06151013458 | AD71: 0.02473757953 | AE71: 0.6401870874 | AF71: 0.2735651985 | AG71: 0.8714422277 | AH71: 22.75478811 | AI71: 10.82508657 | AJ71: 221.4788899 | AK71: 0 | AL71: 0.003657402325 | AM71: 0.000906676623 | AN71: 0.0002615385453 | AO71: 0 | BA71: 63 | BB71: 15181.21938 | BC71: 0.7254903008 | BD71: 20683.62548 | BE71: 0.7476665447 | BJ71: 63 | BK71: 15181.21938 | BL71: 0.7254903008 | BM71: 20683.62548 | BN71: 0.7476665447 | BP71: 6583.489647 | BQ71: 1746.370867 | BR71: tx A | BX71: 62000 | BY71: 0.5005 | BZ71: 0.4995 | CA71: 33522.43063 | CB71: 31272.73012 | CC71: 0.5005
H72: 4.02 | I72: 51 | J72: =MMULT(J71:M71,J$4:M$7) -> 0.1990896099 | K72: 0.0381893538 | L72: 0.5214486238 | M72: 0.2412724124 | N72: 0.8714422277 | O72: 10.84510917 | P72: 4.664247219 | Q72: 196.8697408 | R72: 0 | S72: 0.01183789967 | T72: 0.001399708257 | U72: 0.0002130297802 | V72: 0 | AA72: 4.02 | AB72: 51 | AC72: =MMULT(AC71:AF71,AC$4:AF$7) -> 0.05872337996 | AD72: 0.02361682822 | AE72: 0.6381177545 | AF72: 0.2795420374 | AG72: 0.8714422277 | AH72: 21.72386838 | AI72: 10.33464934 | AJ72: 220.7629842 | AK72: 0 | AL72: 0.003491701454 | AM72: 0.0008655990787 | AN72: 0.0002606931513 | AO72: 0 | BA72: 64 | BB72: 16484.01574 | BC72: 0.5625319856 | BD72: 21715.96941 | BE72: 0.3566743196 | BJ72: 64 | BK72: 16484.01574 | BL72: 0.5625319856 | BM72: 21715.96941 | BN72: 0.3566743196 | BP72: 391.9438247 | BQ72: -11015.73982 | BR72: tx A | BX72: 63000 | BY72: 0.49942 | BZ72: 0.50058 | CA72: 34318.05627 | CB72: 32116.98196 | CC72: 0.49942
H73: 4.03 | I73: 52 | J73: =MMULT(J72:M72,J$4:M$7) -> 0.1944905265 | K73: 0.03730715797 | L73: 0.5218811224 | M73: 0.2463211932 | N73: 0.8714422277 | O73: 10.59458097 | P73: 4.55650045 | Q73: 197.033028 | R73: 0 | S73: 0.01156443745 | T73: 0.001367374199 | U73: 0.0002132064708 | V73: 0 | AA73: 4.03 | AB73: 52 | AC73: =MMULT(AC72:AF72,AC$4:AF$7) -> 0.05606288097 | AD73: 0.02254685323 | AE73: 0.6359000538 | AF73: 0.285490212 | AG73: 0.8714422277 | AH73: 20.73965512 | AI73: 9.866431669 | AJ73: 219.9957493 | AK73: 0 | AL73: 0.003333507764 | AM73: 0.000826382578 | AN73: 0.0002597871439 | AO73: 0 | BA73: 65 | BB73: 16458.29002 | BC73: 0.513042169 | BD73: 21732.7527 | BE73: 0.3537251789 | BJ73: 65 | BK73: 16458.29002 | BL73: 0.513042169 | BM73: 21732.7527 | BN73: 0.3537251789 | BP73: =IF(BK73<>"",lambda*BL73-BK73,"") -> -1067.024949 | BQ73: =IF(BK73<>"",lambda*BN73-BM73,"") -> -11120.99733 | BR73: tx A | BX73: 64000 | BY73: 0.49822 | BZ73: 0.50178 | CA73: 35113.68192 | CB73: 32961.23379 | CC73: 0.49822
H74: 4.04 | I74: 53 | J74: =MMULT(J73:M73,J$4:M$7) -> 0.1899976845 | K74: 0.03644534136 | L74: 0.5221914611 | M74: 0.251365513 | N74: 0.8714422277 | O74: 10.34984011 | P74: 4.451242694 | Q74: 197.1501945 | R74: 0 | S74: 0.01129729235 | T74: 0.001335787076 | U74: 0.0002133332549 | V74: 0 | AA74: 4.04 | AB74: 53 | AC74: =MMULT(AC73:AF73,AC$4:AF$7) -> 0.05352291753 | AD74: 0.02152535412 | AE74: 0.6335428836 | AF74: 0.2914088447 | AG74: 0.8714422277 | AH74: 19.80003223 | AI74: 9.41942689 | AJ74: 219.1802636 | AK74: 0 | AL74: 0.003182481136 | AM74: 0.000788942805 | AN74: 0.0002588241585 | AO74: 0 | BA74: 66 | BB74: 11589.05499 | BC74: 2.311058597 | BD74: 21144.52179 | BE74: 1.491109896 | BJ74: 66 | BK74: 11589.05499 | BL74: 2.311058597 | BM74: 21144.52179 | BN74: 1.491109896 | BP74: 57742.70292 | BQ74: 23588.77508 | BR74: =IF(BK74<>"",IF(BP74>BQ74, "tx A", IF(BQ74>BP74, "tx B", "either")),"") -> tx A | BX74: 65000 | BY74: 0.49701 | BZ74: 0.50299 | CA74: 35909.30757 | CB74: 33805.48562 | CC74: =IF(CA74>CB74,BY74,BZ74) -> 0.49701
H75: 4.05 | I75: 54 | J75: =MMULT(J74:M74,J$4:M$7) -> 0.1856086298 | K75: 0.03560343321 | L75: 0.5223834703 | M75: 0.2564044667 | N75: 0.8714422277 | O75: 10.11075291 | P75: 4.348416452 | Q75: 197.2226864 | R75: 0 | S75: 0.01103631846 | T75: 0.001304929633 | U75: 0.0002134116973 | V75: 0 | AA75: 4.05 | AB75: 54 | AC75: =MMULT(AC74:AF74,AC$4:AF$7) -> 0.05109802871 | AD75: 0.02055013467 | AE75: 0.6310547197 | AF75: 0.2972971169 | AG75: 0.8714422277 | AH75: 18.90297955 | AI75: 8.992673939 | AJ75: 218.3194593 | AK75: 0 | AL75: 0.003038296864 | AM75: 0.0007531992641 | AN75: 0.0002578076575 | AO75: 0 | BA75: =1+BA74 -> 67 | BB75: 15715.04632 | BC75: 1.876961615 | BD75: 21569.05155 | BE75: 1.907068763 | BJ75: =1+BJ74 -> 67 | BK75: 15715.04632 | BL75: 1.876961615 | BM75: 21569.05155 | BN75: 1.907068763 | BP75: 40593.80213 | BQ75: 35643.01134 | BR75: tx A | BX75: 66000 | BY75: 0.49569 | BZ75: 0.50431 | CA75: 36704.93321 | CB75: 34649.73745 | CC75: 0.49569
H76: 4.06 | I76: 55 | J76: =MMULT(J75:M75,J$4:M$7) -> 0.1813209647 | K76: 0.03478097362 | L76: 0.5224608827 | M76: 0.261437179 | N76: 0.8714422277 | O76: 9.877188755 | P76: 4.247965554 | Q76: 197.251913 | R76: 0 | S76: 0.01078137322 | T76: 0.001274785015 | U76: 0.0002134433229 | V76: 0 | AA76: 4.06 | AB76: 55 | AC76: =MMULT(AC75:AF75,AC$4:AF$7) -> 0.04878300097 | AD76: 0.01961909813 | AE76: 0.6284436343 | AF76: 0.3031542666 | AG76: 0.8714422277 | AH76: 18.04656839 | AI76: 8.585255294 | AJ76: 217.4161291 | AK76: 0 | AL76: 0.002900644948 | AM76: 0.0007190751064 | AN76: 0.0002567409389 | AO76: 0 | BA76: 68 | BB76: 16284.74203 | BC76: 1.470643761 | BD76: 22071.15103 | BE76: 1.445022425 | BJ76: 68 | BK76: 16284.74203 | BL76: 1.470643761 | BM76: 22071.15103 | BN76: 1.445022425 | BP76: 27834.5708 | BQ76: 21279.52172 | BR76: tx A | BX76: 67000 | BY76: 0.49473 | BZ76: 0.50527 | CA76: 37500.55886 | CB76: 35493.98929 | CC76: 0.49473
H77: 4.07 | I77: 56 | J77: =MMULT(J76:M76,J$4:M$7) -> 0.1771323471 | K77: 0.03397751332 | L77: 0.5224273358 | M77: 0.2664628038 | N77: 0.8714422277 | O77: 9.649020067 | P77: 4.14983513 | Q77: 197.2392475 | R77: 0 | S77: 0.01053231736 | T77: 0.001245336755 | U77: 0.0002134296178 | V77: 0 | AA77: 4.07 | AB77: 56 | AC77: =MMULT(AC76:AF76,AC$4:AF$7) -> 0.04657285699 | AD77: 0.01873024277 | AE77: 0.6257173147 | AF77: 0.3089795855 | AG77: 0.8714422277 | AH77: 17.22895747 | AI77: 8.196295002 | AJ77: 216.4729326 | AK77: 0 | AL77: 0.002769229438 | AM77: 0.0006864969647 | AN77: 0.0002556271432 | AO77: 0 | BA77: 69 | BB77: 13712.38847 | BC77: 1.048122681 | BD77: 19829.29196 | BE77: 0.7864477537 | BJ77: 69 | BK77: 13712.38847 | BL77: 1.048122681 | BM77: 19829.29196 | BN77: 0.7864477537 | BP77: 17731.29197 | BQ77: 3764.140648 | BR77: tx A | BX77: 68000 | BY77: 0.49356 | BZ77: 0.50644 | CA77: 38296.18451 | CB77: 36338.24112 | CC77: 0.49356
H78: 4.08 | I78: 57 | J78: =MMULT(J77:M77,J$4:M$7) -> 0.173040489 | K78: 0.0331926134 | L78: 0.5222863742 | M78: 0.2714805235 | N78: 0.8714422277 | O78: 9.426122206 | P78: 4.053971574 | Q78: 197.1860283 | R78: 0 | S78: 0.01028901482 | T78: 0.001216568767 | U78: 0.0002133720302 | V78: 0 | AA78: 4.08 | AB78: 57 | AC78: =MMULT(AC77:AF77,AC$4:AF$7) -> 0.04446284495 | AD78: 0.01788165756 | AE78: 0.6228830809 | AF78: 0.3147724166 | AG78: 0.8714422277 | AH78: 16.44838891 | AI78: 7.824956796 | AJ78: 215.4924021 | AK78: 0 | AL78: 0.002643767789 | AM78: 0.0006553947959 | AN78: 0.0002544692607 | AO78: 0 | BA78: 70 | BB78: 17851.94943 | BC78: 0.4785038376 | BD78: 21138.43692 | BE78: 0.8345611607 | BJ78: 70 | BK78: 17851.94943 | BL78: 0.4785038376 | BM78: 21138.43692 | BN78: 0.8345611607 | BP78: -3496.834301 | BQ78: 3898.397898 | BR78: tx B | BX78: 69000 | BY78: 0.49251 | BZ78: 0.50749 | CA78: 39091.81015 | CB78: 37182.49295 | CC78: 0.49251
H79: 4.09 | I79: 58 | J79: =MMULT(J78:M78,J$4:M$7) -> 0.1690431551 | K79: 0.03242584512 | L79: 0.5220414517 | M79: 0.2764895481 | N79: 0.8714422277 | O79: 9.208373413 | P79: 3.960322521 | Q79: 197.0935594 | R79: 0 | S79: 0.01005133272 | T79: 0.001188465335 | U79: 0.0002132719709 | V79: 0 | AA79: 4.09 | AB79: 58 | AC79: =MMULT(AC78:AF78,AC$4:AF$7) -> 0.0424484283 | AD79: 0.01707151802 | AE79: 0.6199479024 | AF79: 0.3205321513 | AG79: 0.8714422277 | AH79: 15.7031845 | AI79: 7.470442297 | AJ79: 214.4769488 | AK79: 0 | AL79: 0.002523990257 | AM79: 0.00062570173 | AN79: 0.0002532701389 | AO79: 0 | BA79: 71 | BB79: 15580.57803 | BC79: 1.432225379 | BD79: 21440.09832 | BE79: 1.487715944 | BJ79: 71 | BK79: 15580.57803 | BL79: 1.432225379 | BM79: 21440.09832 | BN79: 1.487715944 | BP79: 27386.18335 | BQ79: 23191.37999 | BR79: tx A | BX79: 70000 | BY79: 0.49159 | BZ79: 0.50841 | CA79: 39887.4358 | CB79: 38026.74479 | CC79: 0.49159
H80: 4.10 | I80: 59 | J80: =MMULT(J79:M79,J$4:M$7) -> 0.1651381619 | K80: 0.03167678962 | L80: 0.5216959337 | M80: 0.2814891148 | N80: 0.8714422277 | O80: 8.995654741 | P80: 3.868836814 | Q80: 196.9631111 | R80: 0 | S80: 0.009819141207 | T80: 0.001161011109 | U80: 0.0002131308148 | V80: 0 | AA80: 4.10 | AB80: 59 | AC80: =MMULT(AC79:AF79,AC$4:AF$7) -> 0.04052527605 | AD80: 0.01629808236 | AE80: 0.6169184142 | AF80: 0.3262582274 | AG80: 0.8714422277 | AH80: 14.99174203 | AI80: 7.131989296 | AJ80: 213.4288682 | AK80: 0 | AL80: 0.00240963932 | AM80: 0.0005973539268 | AN80: 0.0002520324883 | AO80: 0 | BA80: 72 | BB80: 13565.60757 | BC80: 1.702306691 | BD80: 21344.92281 | BE80: 0.8346906353 | BJ80: 72 | BK80: 13565.60757 | BL80: 1.702306691 | BM80: 21344.92281 | BN80: 0.8346906353 | BP80: 37503.59317 | BQ80: 3695.796247 | BR80: tx A | BX80: 71000 | BY80: 0.49047 | BZ80: 0.50953 | CA80: 40683.06144 | CB80: 38870.99662 | CC80: 0.49047
H81: 4.11 | I81: 60 | J81: =MMULT(J80:M80,J$4:M$7) -> 0.1613233763 | K81: 0.03094503774 | L81: 0.5212530991 | M81: 0.2864784869 | N81: 0.8714422277 | O81: 8.787849991 | P81: 3.77946448 | Q81: 196.7959217 | R81: 0 | S81: 0.009592313451 | T81: 0.001134191091 | U81: 0.0002129499016 | V81: 0 | AA81: 4.11 | AB81: 60 | AC81: =MMULT(AC80:AF80,AC$4:AF$7) -> 0.0386892534 | AD81: 0.01555968767 | AE81: 0.6138009322 | AF81: 0.3319501267 | AG81: 0.8714422277 | AH81: 14.3125319 | AI81: 6.808870118 | AJ81: 212.3503453 | AK81: 0 | AL81: 0.002300469122 | AM81: 0.0005702904383 | AN81: 0.0002507588892 | AO81: 0 | BA81: 73 | BB81: 20077.4824 | BC81: -0.9501546506 | BD81: 21716.59632 | BE81: 0.05061783606 | BJ81: 73 | BK81: 20077.4824 | BL81: -0.9501546506 | BM81: 21716.59632 | BN81: 0.05061783606 | BP81: -48582.12192 | BQ81: -20198.06124 | BR81: tx B | BX81: 72000 | BY81: 0.48959 | BZ81: 0.51041 | CA81: 41478.68709 | CB81: 39715.24845 | CC81: 0.48959
H82: 5.00 | I82: 61 | J82: =MMULT(J81:M81,J$4:M$7) -> 0.1575967144 | K82: 0.03023018973 | L82: 0.5207161426 | M82: 0.2914569533 | N82: 0.8419731669 | O82: 8.29453686 | P82: 3.567301156 | Q82: 189.9451179 | R82: 0 | S82: 0.009053841107 | T82: 0.001070522348 | U82: 0.00020553675 | V82: 0 | AA82: 5.00 | AB82: 61 | AC82: =MMULT(AC81:AF81,AC$4:AF$7) -> 0.03693641289 | AD82: 0.01485474642 | AE82: 0.6106014679 | AF82: 0.3376073728 | AG82: 0.8419731669 | AH82: 13.202023 | AI82: 6.2805701 | AJ82: 204.0999611 | AK82: 0 | AL82: 0.002121975796 | AM82: 0.0005260416211 | AN82: 0.0002410162294 | AO82: 0 | BA82: 74 | BB82: 15696.92231 | BC82: 0.754043837 | BD82: 21113.08444 | BE82: 0.8151882737 | BJ82: 74 | BK82: 15696.92231 | BL82: 0.754043837 | BM82: 21113.08444 | BN82: 0.8151882737 | BP82: 6924.392805 | BQ82: 3342.563772 | BR82: tx A | BX82: 73000 | BY82: 0.4886 | BZ82: 0.5114 | CA82: 42274.31274 | CB82: 40559.50028 | CC82: 0.4886
O83: SILENT | P83: ACTIVE | Q83: COMPL | R83: DEAD | S83: SILENT | T83: ACTIVE | U83: COMPL | V83: DEAD | AH83: SILENT | AI83: ACTIVE | AJ83: COMPL | AK83: DEAD | AL83: SILENT | AM83: ACTIVE | AN83: COMPL | AO83: DEAD | BA83: 75 | BB83: 14554.98088 | BC83: 1.75220509 | BD83: 21872.83449 | BE83: 1.424387714 | BJ83: 75 | BK83: 14554.98088 | BL83: 1.75220509 | BM83: 21872.83449 | BN83: 1.424387714 | BP83: 38011.17183 | BQ83: 20858.79693 | BR83: tx A | BX83: 74000 | BY83: 0.48774 | BZ83: 0.51226 | CA83: 43069.93838 | CB83: 41403.75212 | CC83: 0.48774
F84: NO CORRECTION | H84: TOTALS | J84: =SUM(J22:J81) -> 19.38004892 | K84: =SUM(K22:K81) -> 6.100852622 | L84: 26.00042031 | M84: 8.518678153 | O84: =SUM(O22:O81) -> 1148.860935 | P84: 828.119284 | Q84: 10418.42697 | R84: 0 | S84: 1.254030759 | T84: 0.2485128565 | U84: 0.01127362284 | V84: 0 | AA84: TOTALS | AC84: =SUM(AC22:AC81) -> 10.89072796 | AD84: =SUM(AD22:AD81) -> 6.826971671 | AE84: 32.92650175 | AF84: 9.355798623 | AH84: =SUM(AH22:AH81) -> 4447.729345 | AI84: 3344.619223 | AJ84: 12096.10203 | AK84: 0 | AL84: 0.7148884696 | AM84: 0.2801352251 | AN84: 0.01428396598 | AO84: 0 | BA84: 76 | BB84: 12289.72769 | BC84: 1.293760265 | BD84: 20673.00375 | BE84: 0.7730444065 | BJ84: 76 | BK84: 12289.72769 | BL84: 1.293760265 | BM84: 20673.00375 | BN84: 0.7730444065 | BP84: 26523.08025 | BQ84: 2518.328446 | BR84: tx A | BX84: 75000 | BY84: 0.48684 | BZ84: 0.51316 | CA84: 43865.56403 | CB84: 42248.00395 | CC84: 0.48684
BA85: 77 | BB85: 15888.12074 | BC85: 1.356197065 | BD85: 20192.97393 | BE85: 1.064433762 | BJ85: 77 | BK85: 15888.12074 | BL85: 1.356197065 | BM85: 20192.97393 | BN85: 1.064433762 | BP85: 24797.7912 | BQ85: 11740.03894 | BR85: tx A | BX85: 76000 | BY85: 0.48609 | BZ85: 0.51391 | CA85: 44661.18968 | CB85: 43092.25578 | CC85: 0.48609
Q86: TOTAL COST | R86: =O84+P84+Q84+R84 -> 12395.40718 | U86: TOTAL OUTCOME | V86: =S84+T84+U84+V84 -> 1.513817239 | AJ86: TOTAL COST | AK86: =AH84+AI84+AJ84+AK84 -> 19888.4506 | AN86: TOTAL OUTCOME | AO86: =AL84+AM84+AN84+AO84 -> 1.009307661 | BA86: 78 | BB86: 17290.87999 | BC86: -0.2085361067 | BD86: 20827.72072 | BE86: 0.458611508 | BJ86: 78 | BK86: 17290.87999 | BL86: -0.2085361067 | BM86: 20827.72072 | BN86: 0.458611508 | BP86: -23546.96319 | BQ86: -7069.375477 | BR86: tx B | BX86: 77000 | BY86: 0.48518 | BZ86: 0.51482 | CA86: 45456.81532 | CB86: 43936.50761 | CC86: 0.48518
BA87: 79 | BB87: 18161.53814 | BC87: 0.05106665268 | BD87: 21416.40962 | BE87: 0.3795957803 | BJ87: 79 | BK87: 18161.53814 | BL87: 0.05106665268 | BM87: 21416.40962 | BN87: 0.3795957803 | BP87: -16629.53856 | BQ87: -10028.53621 | BR87: tx B | BX87: 78000 | BY87: 0.48443 | BZ87: 0.51557 | CA87: 46252.44097 | CB87: 44780.75945 | CC87: 0.48443
BA88: 80 | BB88: 18238.4104 | BC88: 1.091819582 | BD88: 21318.40182 | BE88: 1.419987186 | BJ88: 80 | BK88: 18238.4104 | BL88: 1.091819582 | BM88: 21318.40182 | BN88: 1.419987186 | BP88: 14516.17705 | BQ88: 21281.21376 | BR88: tx B | BX88: 79000 | BY88: 0.48371 | BZ88: 0.51629 | CA88: 47048.06661 | CB88: 45625.01128 | CC88: 0.48371
O89: SILENT | P89: ACTIVE | Q89: COMPL | R89: DEAD | S89: SILENT | T89: ACTIVE | U89: COMPL | V89: DEAD | AH89: SILENT | AI89: ACTIVE | AJ89: COMPL | AK89: DEAD | AL89: SILENT | AM89: ACTIVE | AN89: COMPL | AO89: DEAD | BA89: 81 | BB89: 10370.8731 | BC89: 2.246765105 | BD89: 21216.38783 | BE89: 1.133497931 | BJ89: 81 | BK89: 10370.8731 | BL89: 2.246765105 | BM89: 21216.38783 | BN89: 1.133497931 | BP89: 57032.08003 | BQ89: 12788.55011 | BR89: tx A | BX89: 80000 | BY89: 0.4829 | BZ89: 0.5171 | CA89: 47843.69226 | CB89: 46469.26311 | CC89: 0.4829
F90: HALF CYCLE CORRECTION | H90: TOTALS | J90: =0.5*J22+SUM(J23:J81)+0.5*J82 -> 19.45884728 | K90: =0.5*K22+SUM(K23:K81)+0.5*K82 -> 5.615967717 | L90: 26.26077838 | M90: 8.664406629 | O90: 1153.008203 | P90: 759.8267166 | Q90: 10513.39952 | R90: 0 | S90: =0.5*S22+SUM(S23:S81)+0.5*S82 -> 1.25855768 | T90: =0.5*T22+SUM(T23:T81)+0.5*T82 -> 0.2280187304 | U90: =0.5*U22+SUM(U23:U81)+0.5*U82 -> 0.01137639121 | V90: =0.5*V22+SUM(V23:V81)+0.5*V82 -> 0 | AA90: TOTALS | AC90: =0.5*AC22+SUM(AC23:AC81)+0.5*AC82 -> 10.90919617 | AD90: =0.5*AD22+SUM(AD23:AD81)+0.5*AD82 -> 6.334399044 | AE90: 33.23180248 | AF90: 9.524602309 | AH90: 4454.330357 | AI90: 3096.683291 | AJ90: 12198.15201 | AK90: 0 | AL90: =0.5*AL22+SUM(AL23:AL81)+0.5*AL82 -> 0.7159494575 | AM90: =0.5*AM22+SUM(AM23:AM81)+0.5*AM82 -> 0.2593688586 | AN90: 0.0144044741 | AO90: 0 | BA90: 82 | BB90: 14503.67121 | BC90: 0.9738560176 | BD90: 19811.366 | BE90: 0.9977996924 | BJ90: 82 | BK90: 14503.67121 | BL90: 0.9738560176 | BM90: 19811.366 | BN90: 0.9977996924 | BP90: 14712.00932 | BQ90: 10122.62477 | BR90: tx A | BX90: 81000 | BY90: 0.48202 | BZ90: 0.51798 | CA90: 48639.31791 | CB90: 47313.51494 | CC90: 0.48202
BA91: 83 | BB91: 15223.1849 | BC91: 0.1223909098 | BD91: 20482.67374 | BE91: 0.3243350695 | BJ91: 83 | BK91: 15223.1849 | BL91: 0.1223909098 | BM91: 20482.67374 | BN91: 0.3243350695 | BP91: -11551.45761 | BQ91: -10752.62166 | BR91: tx B | BX91: 82000 | BY91: 0.48129 | BZ91: 0.51871 | CA91: 49434.94355 | CB91: 48157.76678 | CC91: 0.48129
Q92: TOTAL COST | R92: =O90+P90+Q90+R90 -> 12426.23444 | U92: TOTAL OUTCOME | V92: =S90+T90+U90+V90 -> 1.497952802 | AJ92: TOTAL COST | AK92: =AH90+AI90+AJ90+AK90 -> 19749.16566 | AN92: TOTAL OUTCOME | AO92: =AL90+AM90+AN90+AO90 -> 0.9897227902 | BA92: 84 | BB92: 13456.14617 | BC92: 1.366166623 | BD92: 21647.72762 | BE92: 1.011735755 | BJ92: 84 | BK92: 13456.14617 | BL92: 1.366166623 | BM92: 21647.72762 | BN92: 1.011735755 | BP92: 27528.85252 | BQ92: 8704.345016 | BR92: tx A | BX92: 83000 | BY92: 0.48064 | BZ92: 0.51936 | CA92: 50230.5692 | CB92: 49002.01861 | CC92: 0.48064
BA93: 85 | BB93: 15162.7469 | BC93: 1.25803878 | BD93: 21027.58025 | BE93: 1.159010198 | BJ93: 85 | BK93: 15162.7469 | BL93: 1.25803878 | BM93: 21027.58025 | BN93: 1.159010198 | BP93: 22578.41649 | BQ93: 13742.72569 | BR93: tx A | BX93: 84000 | BY93: 0.47995 | BZ93: 0.52005 | CA93: 51026.19485 | CB93: 49846.27044 | CC93: 0.47995
BA94: 86 | BB94: 14237.183 | BC94: 1.514010742 | BD94: 21615.47904 | BE94: 0.9434227532 | BJ94: 86 | BK94: 14237.183 | BL94: 1.514010742 | BM94: 21615.47904 | BN94: 0.9434227532 | BP94: 31183.13927 | BQ94: 6687.203554 | BR94: tx A | BX94: 85000 | BY94: 0.47932 | BZ94: 0.52068 | CA94: 51821.82049 | CB94: 50690.52227 | CC94: 0.47932
BA95: 87 | BB95: 14787.32329 | BC95: 0.795107565 | BD95: 21318.31149 | BE95: 0.4945842002 | BJ95: 87 | BK95: 14787.32329 | BL95: 0.795107565 | BM95: 21318.31149 | BN95: 0.4945842002 | BP95: 9065.903659 | BQ95: -6480.785486 | BR95: tx A | BX95: 86000 | BY95: 0.47859 | BZ95: 0.52141 | CA95: 52617.44614 | CB95: 51534.77411 | CC95: 0.47859
BA96: 88 | BB96: 14970.95337 | BC96: -0.6534920631 | BD96: 20559.76208 | BE96: -0.5879555852 | BJ96: 88 | BK96: 14970.95337 | BL96: -0.6534920631 | BM96: 20559.76208 | BN96: -0.5879555852 | BP96: -34575.71526 | BQ96: -38198.42964 | BR96: tx A | BX96: 87000 | BY96: 0.47804 | BZ96: 0.52196 | CA96: 53413.07178 | CB96: 52379.02594 | CC96: 0.47804
BA97: 89 | BB97: 16918.07695 | BC97: -0.2688434791 | BD97: 21381.91162 | BE97: 0.4173085742 | BJ97: 89 | BK97: 16918.07695 | BL97: -0.2688434791 | BM97: 21381.91162 | BN97: 0.4173085742 | BP97: -24983.38133 | BQ97: -8862.654391 | BR97: tx B | BX97: 88000 | BY97: 0.47736 | BZ97: 0.52264 | CA97: 54208.69743 | CB97: 53223.27777 | CC97: 0.47736
BA98: 90 | BB98: 17145.95825 | BC98: 1.204530075 | BD98: 21173.29846 | BE98: 1.294752154 | BJ98: 90 | BK98: 17145.95825 | BL98: 1.204530075 | BM98: 21173.29846 | BN98: 1.294752154 | BP98: 18989.94399 | BQ98: 17669.26616 | BR98: tx A | BX98: 89000 | BY98: 0.47686 | BZ98: 0.52314 | CA98: 55004.32308 | CB98: 54067.5296 | CC98: 0.47686
BA99: 91 | BB99: 17044.85185 | BC99: 1.376390455 | BD99: 21810.54486 | BE99: 1.631007115 | BJ99: 91 | BK99: 17044.85185 | BL99: 1.376390455 | BM99: 21810.54486 | BN99: 1.631007115 | BP99: 24246.86181 | BQ99: 27119.6686 | BR99: tx B | BX99: 90000 | BY99: 0.47634 | BZ99: 0.52366 | CA99: 55799.94872 | CB99: 54911.78144 | CC99: 0.47634
BA100: 92 | BB100: 17783.32297 | BC100: 0.5626400836 | BD100: 20968.71902 | BE100: 0.8201628726 | BJ100: 92 | BK100: 17783.32297 | BL100: 0.5626400836 | BM100: 20968.71902 | BN100: 0.8201628726 | BP100: -904.1204652 | BQ100: 3636.167158 | BR100: tx B | BX100: 91000 | BY100: 0.47569 | BZ100: 0.52431 | CA100: 56595.57437 | CB100: 55756.03327 | CC100: 0.47569
BA101: 93 | BB101: 17298.41447 | BC101: 0.6879934164 | BD101: 20836.76444 | BE101: 1.057333123 | BJ101: 93 | BK101: 17298.41447 | BL101: 0.6879934164 | BM101: 20836.76444 | BN101: 1.057333123 | BP101: 3341.388018 | BQ101: 10883.22925 | BR101: tx B | BX101: 92000 | BY101: 0.47505 | BZ101: 0.52495 | CA101: 57391.20002 | CB101: 56600.2851 | CC101: 0.47505
BA102: 94 | BB102: 13636.65696 | BC102: 0.8842385925 | BD102: 21345.41217 | BE102: 0.6346006715 | BJ102: 94 | BK102: 13636.65696 | BL102: 0.8842385925 | BM102: 21345.41217 | BN102: 0.6346006715 | BP102: 12890.50081 | BQ102: -2307.392022 | BR102: tx A | BX102: 93000 | BY102: 0.47454 | BZ102: 0.52546 | CA102: 58186.82566 | CB102: 57444.53693 | CC102: 0.47454
BA103: 95 | BB103: 14324.9515 | BC103: 0.8519956844 | BD103: 20393.99353 | BE103: 0.5069000823 | BJ103: 95 | BK103: 14324.9515 | BL103: 0.8519956844 | BM103: 20393.99353 | BN103: 0.5069000823 | BP103: 11234.91903 | BQ103: -5186.991058 | BR103: tx A | BX103: 94000 | BY103: 0.47404 | BZ103: 0.52596 | CA103: 58982.45131 | CB103: 58288.78877 | CC103: 0.47404
BA104: 96 | BB104: 16500.69002 | BC104: 0.3942406246 | BD104: 21181.58195 | BE104: 0.6355561855 | BJ104: 96 | BK104: 16500.69002 | BL104: 0.3942406246 | BM104: 21181.58195 | BN104: 0.6355561855 | BP104: -4673.471276 | BQ104: -2114.896387 | BR104: tx B | BX104: 95000 | BY104: 0.47351 | BZ104: 0.52649 | CA104: 59778.07695 | CB104: 59133.0406 | CC104: 0.47351
BA105: 97 | BB105: 17325.04476 | BC105: 0.5039765564 | BD105: 21303.08489 | BE105: 0.6670828098 | BJ105: 97 | BK105: 17325.04476 | BL105: 0.5039765564 | BM105: 21303.08489 | BN105: 0.6670828098 | BP105: -2205.748064 | BQ105: -1290.600598 | BR105: tx B | BX105: 96000 | BY105: 0.47314 | BZ105: 0.52686 | CA105: 60573.7026 | CB105: 59977.29243 | CC105: 0.47314
BA106: 98 | BB106: 15958.39278 | BC106: 1.306577926 | BD106: 20509.09387 | BE106: 1.512368467 | BJ106: 98 | BK106: 15958.39278 | BL106: 1.306577926 | BM106: 20509.09387 | BN106: 1.512368467 | BP106: 23238.94499 | BQ106: 24861.96013 | BR106: tx B | BX106: 97000 | BY106: 0.47271 | BZ106: 0.52729 | CA106: 61369.32825 | CB106: 60821.54426 | CC106: 0.47271
BA107: 99 | BB107: 17565.78687 | BC107: 0.3117244469 | BD107: 21543.32365 | BE107: 0.8230682237 | BJ107: 99 | BK107: 17565.78687 | BL107: 0.3117244469 | BM107: 21543.32365 | BN107: 0.8230682237 | BP107: -8214.053466 | BQ107: 3148.723057 | BR107: tx B | BX107: 98000 | BY107: 0.47225 | BZ107: 0.52775 | CA107: 62164.95389 | CB107: 61665.7961 | CC107: 0.47225
BA108: 100 | BB108: 18394.17708 | BC108: 0.4755197418 | BD108: 21347.01778 | BE108: 0.7826912185 | BJ108: 100 | BK108: 18394.17708 | BL108: 0.4755197418 | BM108: 21347.01778 | BN108: 0.7826912185 | BP108: -4128.584823 | BQ108: 2133.71878 | BR108: tx B | BX108: 99000 | BY108: 0.47172 | BZ108: 0.52828 | CA108: 62960.57954 | CB108: 62510.04793 | CC108: 0.47172
BA109: 101 | BB109: 15509.99341 | BC109: 0.8038303376 | BD109: 21409.45984 | BE109: 0.8431547602 | BJ109: 101 | BK109: 15509.99341 | BL109: 0.8038303376 | BM109: 21409.45984 | BN109: 0.8431547602 | BP109: 8604.916712 | BQ109: 3885.182964 | BR109: tx A | BX109: 100000 | BY109: 0.47117 | BZ109: 0.52883 | CA109: 63756.20519 | CB109: 63354.29976 | CC109: 0.47117
BA110: 102 | BB110: 15105.07002 | BC110: 0.6237052285 | BD110: 21383.40224 | BE110: 0.7282241904 | BJ110: 102 | BK110: 15105.07002 | BL110: 0.6237052285 | BM110: 21383.40224 | BN110: 0.7282241904 | BP110: 3606.086834 | BQ110: 463.3234707 | BR110: tx A | BX110: 101000 | BY110: 0.4707 | BZ110: 0.5293 | CA110: 64551.83083 | CB110: 64198.55159 | CC110: 0.4707
BA111: 103 | BB111: 18697.14761 | BC111: -0.4985014124 | BD111: 21456.80524 | BE111: 0.1790848486 | BJ111: 103 | BK111: 18697.14761 | BL111: -0.4985014124 | BM111: 21456.80524 | BN111: 0.1790848486 | BP111: -33652.18999 | BQ111: -16084.25978 | BR111: tx B | BX111: 102000 | BY111: 0.47029 | BZ111: 0.52971 | CA111: 65347.45648 | CB111: 65042.80343 | CC111: 0.47029
BA112: 104 | BB112: 14780.43132 | BC112: 1.083273353 | BD112: 21445.43229 | BE112: 0.7032143239 | BJ112: 104 | BK112: 14780.43132 | BL112: 1.083273353 | BM112: 21445.43229 | BN112: 0.7032143239 | BP112: 17717.76927 | BQ112: -349.0025687 | BR112: tx A | BX112: 103000 | BY112: 0.47003 | BZ112: 0.52997 | CA112: 66143.08213 | CB112: 65887.05526 | CC112: 0.47003
BA113: 105 | BB113: 15727.61098 | BC113: 0.9028542573 | BD113: 20073.59273 | BE113: 0.7310751041 | BJ113: 105 | BK113: 15727.61098 | BL113: 0.9028542573 | BM113: 20073.59273 | BN113: 0.7310751041 | BP113: 11358.01674 | BQ113: 1858.660389 | BR113: tx A | BX113: 104000 | BY113: 0.46965 | BZ113: 0.53035 | CA113: 66938.70777 | CB113: 66731.30709 | CC113: 0.46965
BA114: 106 | BB114: 14435.83563 | BC114: -0.5311835834 | BD114: 20448.00731 | BE114: -0.3525868621 | BJ114: 106 | BK114: 14435.83563 | BL114: -0.5311835834 | BM114: 20448.00731 | BN114: -0.3525868621 | BP114: -30371.34313 | BQ114: -31025.61317 | BR114: tx A | BX114: 105000 | BY114: 0.46918 | BZ114: 0.53082 | CA114: 67734.33342 | CB114: 67575.55892 | CC114: 0.46918
BA115: 107 | BB115: 14206.44506 | BC115: 1.955601215 | BD115: 22209.54703 | BE115: 0.97681149 | BJ115: 107 | BK115: 14206.44506 | BL115: 1.955601215 | BM115: 22209.54703 | BN115: 0.97681149 | BP115: 44461.59141 | BQ115: 7094.797672 | BR115: tx A | BX115: 106000 | BY115: 0.46861 | BZ115: 0.53139 | CA115: 68529.95906 | CB115: 68419.81076 | CC115: 0.46861
BA116: 108 | BB116: 17268.19739 | BC116: 1.075429566 | BD116: 20806.3306 | BE116: 1.244448537 | BJ116: 108 | BK116: 17268.19739 | BL116: 1.075429566 | BM116: 20806.3306 | BN116: 1.244448537 | BP116: 14994.68959 | BQ116: 16527.12552 | BR116: tx B | BX116: 107000 | BY116: 0.46813 | BZ116: 0.53187 | CA116: 69325.58471 | CB116: 69264.06259 | CC116: 0.46813
BA117: 109 | BB117: 16439.20474 | BC117: 0.6390009319 | BD117: 21402.93991 | BE117: 0.8047711854 | BJ117: 109 | BK117: 16439.20474 | BL117: 0.6390009319 | BM117: 21402.93991 | BN117: 0.8047711854 | BP117: 2730.823218 | BQ117: 2740.195656 | BR117: tx B | BX117: 108000 | BY117: 0.46772 | BZ117: 0.53228 | CA117: 70121.21036 | CB117: 70108.31442 | CC117: 0.46772
BA118: 110 | BB118: 16754.03491 | BC118: 1.52344508 | BD118: 21669.67737 | BE118: 1.621704198 | BJ118: 110 | BK118: 16754.03491 | BL118: 1.52344508 | BM118: 21669.67737 | BN118: 1.621704198 | BP118: 28949.31749 | BQ118: 26981.44857 | BR118: tx A | BX118: 108265 | BY118: 0.46759 | BZ118: 0.53241 | CA118: 70332.21471 | CB118: 70332.21471 | CC118: =BY118 -> 0.46759
BA119: 111 | BB119: 16285.94868 | BC119: 0.07672816118 | BD119: 20798.96505 | BE119: 0.2644018527 | BJ119: 111 | BK119: 16285.94868 | BL119: 0.07672816118 | BM119: 20798.96505 | BN119: 0.2644018527 | BP119: -13984.10385 | BQ119: -12866.90947 | BR119: tx B | BX119: 108265 | BY119: 0.46759 | BZ119: 0.53241 | CA119: 70332.21471 | CB119: 70332.21471 | CC119: 0.53241
BA120: 112 | BB120: 18232.30777 | BC120: 0.3432846315 | BD120: 21441.77248 | BE120: 1.004447579 | BJ120: 112 | BK120: 18232.30777 | BL120: 0.3432846315 | BM120: 21441.77248 | BN120: 1.004447579 | BP120: -7933.768827 | BQ120: 8691.654896 | BR120: tx B | BX120: 109000 | BY120: 0.46726 | BZ120: 0.53274 | CA120: 70916.836 | CB120: 70952.56625 | CC120: 0.53274
BA121: 113 | BB121: 16760.04021 | BC121: 0.9579795975 | BD121: 21062.02063 | BE121: 1.191182182 | BJ121: 113 | BK121: 16760.04021 | BL121: 0.9579795975 | BM121: 21062.02063 | BN121: 1.191182182 | BP121: 11979.34771 | BQ121: 14673.44483 | BR121: tx B | BX121: 110000 | BY121: 0.46692 | BZ121: 0.53308 | CA121: 71712.46165 | CB121: 71796.81809 | CC121: 0.53308
BA122: 114 | BB122: 16386.01819 | BC122: 0.7691101546 | BD122: 20691.03953 | BE122: 1.009305831 | BJ122: 114 | BK122: 16386.01819 | BL122: 0.7691101546 | BM122: 20691.03953 | BN122: 1.009305831 | BP122: 6687.286445 | BQ122: 9588.135394 | BR122: tx B | BX122: 111000 | BY122: 0.46638 | BZ122: 0.53362 | CA122: 72508.0873 | CB122: 72641.06992 | CC122: 0.53362
BA123: 115 | BB123: 17879.13628 | BC123: 0.06637979352 | BD123: 21272.96029 | BE123: 0.5515201128 | BJ123: 115 | BK123: 17879.13628 | BL123: 0.06637979352 | BM123: 21272.96029 | BN123: 0.5515201128 | BP123: -15887.74247 | BQ123: -4727.35691 | BR123: tx B | BX123: 112000 | BY123: 0.466 | BZ123: 0.534 | CA123: 73303.71294 | CB123: 73485.32175 | CC123: 0.534
BA124: 116 | BB124: 13598.60095 | BC124: 1.532097277 | BD124: 20679.10157 | BE124: 1.202091671 | BJ124: 116 | BK124: 13598.60095 | BL124: 1.532097277 | BM124: 20679.10157 | BN124: 1.202091671 | BP124: 32364.31735 | BQ124: 15383.64856 | BR124: tx A | BX124: 113000 | BY124: 0.46549 | BZ124: 0.53451 | CA124: 74099.33859 | CB124: 74329.57358 | CC124: 0.53451
BA125: 117 | BB125: 12756.31825 | BC125: 1.312461639 | BD125: 20733.44925 | BE125: 0.7131779843 | BJ125: 117 | BK125: 12756.31825 | BL125: 1.312461639 | BM125: 20733.44925 | BN125: 0.7131779843 | BP125: 26617.53091 | BQ125: 661.8902826 | BR125: tx A | BX125: 114000 | BY125: 0.46512 | BZ125: 0.53488 | CA125: 74894.96423 | CB125: 75173.82542 | CC125: 0.53488
BA126: 118 | BB126: 14614.50635 | BC126: 0.5760009298 | BD126: 21033.85501 | BE126: 0.6778557779 | BJ126: 118 | BK126: 14614.50635 | BL126: 0.5760009298 | BM126: 21033.85501 | BN126: 0.6778557779 | BP126: 2665.521548 | BQ126: -698.1816759 | BR126: tx A | BX126: 115000 | BY126: 0.46475 | BZ126: 0.53525 | CA126: 75690.58988 | CB126: 76018.07725 | CC126: 0.53525
BA127: 119 | BB127: 13571.61497 | BC127: 1.450068202 | BD127: 21146.39495 | BE127: 0.9247150892 | BJ127: 119 | BK127: 13571.61497 | BL127: 1.450068202 | BM127: 21146.39495 | BN127: 0.9247150892 | BP127: 29930.43109 | BQ127: 6595.057731 | BR127: tx A | BX127: 116000 | BY127: 0.46445 | BZ127: 0.53555 | CA127: 76486.21553 | CB127: 76862.32908 | CC127: 0.53555
BA128: 120 | BB128: 18740.44439 | BC128: 1.377871345 | BD128: 21816.52892 | BE128: 1.683194014 | BJ128: 120 | BK128: 18740.44439 | BL128: 1.377871345 | BM128: 21816.52892 | BN128: 1.683194014 | BP128: 22595.69596 | BQ128: 28679.2915 | BR128: tx B | BX128: 117000 | BY128: 0.46413 | BZ128: 0.53587 | CA128: 77281.84117 | CB128: 77706.58091 | CC128: 0.53587
BA129: 121 | BB129: 16069.76153 | BC129: 0.7743706723 | BD129: 21516.09173 | BE129: 0.7016818713 | BJ129: 121 | BK129: 16069.76153 | BL129: 0.7743706723 | BM129: 21516.09173 | BN129: 0.7016818713 | BP129: 7161.35864 | BQ129: -465.6355882 | BR129: tx A | BX129: 118000 | BY129: 0.46374 | BZ129: 0.53626 | CA129: 78077.46682 | CB129: 78550.83275 | CC129: 0.53626
BA130: 122 | BB130: 16555.25235 | BC130: 0.5149261665 | BD130: 21017.46928 | BE130: 0.8316095598 | BJ130: 122 | BK130: 16555.25235 | BL130: 0.5149261665 | BM130: 21017.46928 | BN130: 0.8316095598 | BP130: -1107.46736 | BQ130: 3930.817508 | BR130: tx B | BX130: 119000 | BY130: 0.46339 | BZ130: 0.53661 | CA130: 78873.09247 | CB130: 79395.08458 | CC130: 0.53661
BA131: 123 | BB131: 14990.07689 | BC131: 0.662962098 | BD131: 21769.74484 | BE131: 0.5720952988 | BJ131: 123 | BK131: 14990.07689 | BL131: 0.662962098 | BM131: 21769.74484 | BN131: 0.5720952988 | BP131: 4898.786055 | BQ131: -4606.885878 | BR131: tx A | BX131: 120000 | BY131: 0.46314 | BZ131: 0.53686 | CA131: 79668.71811 | CB131: 80239.33641 | CC131: 0.53686
BA132: 124 | BB132: 16593.14506 | BC132: -0.1801209268 | BD132: 21258.18901 | BE132: -0.2550186133 | BJ132: 124 | BK132: 16593.14506 | BL132: -0.1801209268 | BM132: 21258.18901 | BN132: -0.2550186133 | BP132: -21996.77286 | BQ132: -28908.7474 | BR132: tx A | BX132: 121000 | BY132: 0.46273 | BZ132: 0.53727 | CA132: 80464.34376 | CB132: 81083.58824 | CC132: 0.53727
BA133: 125 | BB133: 15808.93075 | BC133: 1.21730802 | BD133: 21776.26037 | BE133: 1.027485781 | BJ133: 125 | BK133: 15808.93075 | BL133: 1.21730802 | BM133: 21776.26037 | BN133: 1.027485781 | BP133: 20710.30983 | BQ133: 9048.31306 | BR133: tx A | BX133: 122000 | BY133: 0.46239 | BZ133: 0.53761 | CA133: 81259.9694 | CB133: 81927.84008 | CC133: 0.53761
BA134: 126 | BB134: 16914.58216 | BC134: 0.956299852 | BD134: 21147.59823 | BE134: 1.232004081 | BJ134: 126 | BK134: 16914.58216 | BL134: 0.956299852 | BM134: 21147.59823 | BN134: 1.232004081 | BP134: 11774.4134 | BQ134: 15812.52421 | BR134: tx B | BX134: 123000 | BY134: 0.46212 | BZ134: 0.53788 | CA134: 82055.59505 | CB134: 82772.09191 | CC134: 0.53788
BA135: 127 | BB135: 17916.43417 | BC135: 0.5809572555 | BD135: 20985.70034 | BE135: 0.7725992217 | BJ135: 127 | BK135: 17916.43417 | BL135: 0.5809572555 | BM135: 20985.70034 | BN135: 0.7725992217 | BP135: -487.7165085 | BQ135: 2192.276313 | BR135: tx B | BX135: 124000 | BY135: 0.46179 | BZ135: 0.53821 | CA135: 82851.2207 | CB135: 83616.34374 | CC135: 0.53821
BA136: 128 | BB136: 17952.68692 | BC136: 0.4786473957 | BD136: 20575.89602 | BE136: 0.7682030023 | BJ136: 128 | BK136: 17952.68692 | BL136: 0.4786473957 | BM136: 20575.89602 | BN136: 0.7682030023 | BP136: -3593.265051 | BQ136: 2470.194048 | BR136: tx B | BX136: 125000 | BY136: 0.46146 | BZ136: 0.53854 | CA136: 83646.84634 | CB136: 84460.59557 | CC136: 0.53854
BA137: 129 | BB137: 13834.0315 | BC137: 0.9915390742 | BD137: 21488.05881 | BE137: 0.4745582277 | BJ137: 129 | BK137: 13834.0315 | BL137: 0.9915390742 | BM137: 21488.05881 | BN137: 0.4745582277 | BP137: =IF(BK137<>"",lambda*BL137-BK137,"") -> 15912.14072 | BQ137: =IF(BK137<>"",lambda*BN137-BM137,"") -> -7251.311982 | BR137: tx A | BX137: 126000 | BY137: 0.46112 | BZ137: 0.53888 | CA137: 84442.47199 | CB137: 85304.84741 | CC137: 0.53888
BA138: 130 | BB138: 14132.88677 | BC138: 1.089745555 | BD138: 20372.34363 | BE138: 0.8461407196 | BJ138: 130 | BK138: 14132.88677 | BL138: 1.089745555 | BM138: 20372.34363 | BN138: 0.8461407196 | BP138: 18559.47988 | BQ138: 5011.877959 | BR138: =IF(BK138<>"",IF(BP138>BQ138, "tx A", IF(BQ138>BP138, "tx B", "either")),"") -> tx A | BX138: 127000 | BY138: 0.46083 | BZ138: 0.53917 | CA138: 85238.09764 | CB138: 86149.09924 | CC138: 0.53917
BA139: =1+BA138 -> 131 | BB139: 16655.63571 | BC139: 0.9212237538 | BD139: 21439.63756 | BE139: 1.259155387 | BJ139: =1+BJ138 -> 131 | BK139: 16655.63571 | BL139: 0.9212237538 | BM139: 21439.63756 | BN139: 1.259155387 | BP139: 10981.0769 | BQ139: 16335.02406 | BR139: tx B | BX139: 128000 | BY139: 0.46052 | BZ139: 0.53948 | CA139: 86033.72328 | CB139: 86993.35107 | CC139: 0.53948
BA140: 132 | BB140: 14573.76651 | BC140: 0.9229745228 | BD140: 20198.22879 | BE140: 0.7801127788 | BJ140: 132 | BK140: 14573.76651 | BL140: 0.9229745228 | BM140: 20198.22879 | BN140: 0.7801127788 | BP140: 13115.46917 | BQ140: 3205.154572 | BR140: tx A | BX140: 129000 | BY140: 0.46023 | BZ140: 0.53977 | CA140: 86829.34893 | CB140: 87837.6029 | CC140: =IF(CA140>CB140,BY140,BZ140) -> 0.53977
BA141: 133 | BB141: 14997.75969 | BC141: 0.849198988 | BD141: 20189.52559 | BE141: 0.9192481723 | BJ141: 133 | BK141: 14997.75969 | BL141: 0.849198988 | BM141: 20189.52559 | BN141: 0.9192481723 | BP141: 10478.20994 | BQ141: 7387.919583 | BR141: tx A | BX141: 130000 | BY141: 0.45993 | BZ141: 0.54007 | CA141: 87624.97457 | CB141: 88681.85474 | CC141: 0.54007
BA142: 134 | BB142: 17736.36292 | BC142: -0.1849708591 | BD142: 21026.46403 | BE142: 0.600304494 | BJ142: 134 | BK142: 17736.36292 | BL142: -0.1849708591 | BM142: 21026.46403 | BN142: 0.600304494 | BP142: -23285.4887 | BQ142: -3017.329213 | BR142: tx B | BX142: 131000 | BY142: 0.45963 | BZ142: 0.54037 | CA142: 88420.60022 | CB142: 89526.10657 | CC142: 0.54037
BA143: 135 | BB143: 17099.379 | BC143: 0.5141379857 | BD143: 21710.01511 | BE143: 0.4210988565 | BJ143: 135 | BK143: 17099.379 | BL143: 0.5141379857 | BM143: 21710.01511 | BN143: 0.4210988565 | BP143: -1675.239435 | BQ143: -9077.049414 | BR143: tx A | BX143: 132000 | BY143: 0.45921 | BZ143: 0.54079 | CA143: 89216.22587 | CB143: 90370.3584 | CC143: 0.54079
BA144: 136 | BB144: 14160.21857 | BC144: 0.4346811157 | BD144: 21116.61727 | BE144: 0.2770974276 | BJ144: 136 | BK144: 14160.21857 | BL144: 0.4346811157 | BM144: 21116.61727 | BN144: 0.2770974276 | BP144: -1119.785097 | BQ144: -12803.69444 | BR144: tx A | BX144: 133000 | BY144: 0.45898 | BZ144: 0.54102 | CA144: 90011.85151 | CB144: 91214.61023 | CC144: 0.54102
BA145: 137 | BB145: 16185.38028 | BC145: 0.3404467271 | BD145: 21514.35685 | BE145: 0.4947510057 | BJ145: 137 | BK145: 16185.38028 | BL145: 0.3404467271 | BM145: 21514.35685 | BN145: 0.4947510057 | BP145: -5971.978465 | BQ145: -6671.826673 | BR145: tx A | BX145: 134000 | BY145: 0.45877 | BZ145: 0.54123 | CA145: 90807.47716 | CB145: 92058.86207 | CC145: 0.54123
BA146: 138 | BB146: 18314.68452 | BC146: 0.4495836707 | BD146: 21482.39174 | BE146: 0.7961809632 | BJ146: 138 | BK146: 18314.68452 | BL146: 0.4495836707 | BM146: 21482.39174 | BN146: 0.7961809632 | BP146: -4827.174394 | BQ146: 2403.037156 | BR146: tx B | BX146: 135000 | BY146: 0.45856 | BZ146: 0.54144 | CA146: 91603.10281 | CB146: 92903.1139 | CC146: 0.54144
BA147: 139 | BB147: 15671.17363 | BC147: 0.5349953091 | BD147: 21002.41019 | BE147: 0.7353845913 | BJ147: 139 | BK147: 15671.17363 | BL147: 0.5349953091 | BM147: 21002.41019 | BN147: 0.7353845913 | BP147: 378.6856442 | BQ147: 1059.127553 | BR147: tx B | BX147: 136000 | BY147: 0.45831 | BZ147: 0.54169 | CA147: 92398.72845 | CB147: 93747.36573 | CC147: 0.54169
BA148: 140 | BB148: 16420.67469 | BC148: 0.8985330965 | BD148: 21272.65036 | BE148: 1.030993686 | BJ148: 140 | BK148: 16420.67469 | BL148: 0.8985330965 | BM148: 21272.65036 | BN148: 1.030993686 | BP148: 10535.3182 | BQ148: 9657.160207 | BR148: tx A | BX148: 137000 | BY148: 0.45807 | BZ148: 0.54193 | CA148: 93194.3541 | CB148: 94591.61756 | CC148: 0.54193
BA149: 141 | BB149: 13386.28963 | BC149: 1.180540297 | BD149: 20924.90942 | BE149: 0.6917016958 | BJ149: 141 | BK149: 13386.28963 | BL149: 1.180540297 | BM149: 20924.90942 | BN149: 0.6917016958 | BP149: 22029.91927 | BQ149: -173.8585494 | BR149: tx A | BX149: 138000 | BY149: 0.45793 | BZ149: 0.54207 | CA149: 93989.97975 | CB149: 95435.8694 | CC149: 0.54207
BA150: 142 | BB150: 16810.23197 | BC150: 0.6847931504 | BD150: 21283.48807 | BE150: 1.064256422 | BJ150: 142 | BK150: 16810.23197 | BL150: 0.6847931504 | BM150: 21283.48807 | BN150: 1.064256422 | BP150: 3733.562541 | BQ150: 10644.2046 | BR150: tx B | BX150: 139000 | BY150: 0.45771 | BZ150: 0.54229 | CA150: 94785.60539 | CB150: 96280.12123 | CC150: 0.54229
BA151: 143 | BB151: 15390.71443 | BC151: 1.555934383 | BD151: 21691.45159 | BE151: 1.190960636 | BJ151: 143 | BK151: 15390.71443 | BL151: 1.555934383 | BM151: 21691.45159 | BN151: 1.190960636 | BP151: 31287.31706 | BQ151: 14037.36748 | BR151: tx A | BX151: 140000 | BY151: 0.45754 | BZ151: 0.54246 | CA151: 95581.23104 | CB151: 97124.37306 | CC151: 0.54246
BA152: 144 | BB152: 16867.08408 | BC152: 0.8628066853 | BD152: 20706.59559 | BE152: 1.15554154 | BJ152: 144 | BK152: 16867.08408 | BL152: 0.8628066853 | BM152: 20706.59559 | BN152: 1.15554154 | BP152: 9017.116484 | BQ152: 13959.65062 | BR152: tx B | BX152: 141000 | BY152: 0.45726 | BZ152: 0.54274 | CA152: 96376.85668 | CB152: 97968.62489 | CC152: 0.54274
BA153: 145 | BB153: 18018.85634 | BC153: 0.7970090894 | BD153: 21279.64215 | BE153: 1.093581411 | BJ153: 145 | BK153: 18018.85634 | BL153: 0.7970090894 | BM153: 21279.64215 | BN153: 1.093581411 | BP153: 5891.416341 | BQ153: 11527.80018 | BR153: tx B | BX153: 142000 | BY153: 0.45705 | BZ153: 0.54295 | CA153: 97172.48233 | CB153: 98812.87673 | CC153: 0.54295
BA154: 146 | BB154: 15735.3944 | BC154: 0.2310372552 | BD154: 20848.3205 | BE154: 0.2272790815 | BJ154: 146 | BK154: 15735.3944 | BL154: 0.2310372552 | BM154: 20848.3205 | BN154: 0.2272790815 | BP154: -8804.276749 | BQ154: -14029.94806 | BR154: tx A | BX154: 143000 | BY154: 0.45674 | BZ154: 0.54326 | CA154: 97968.10798 | CB154: 99657.12856 | CC154: 0.54326
BA155: 147 | BB155: 16575.89782 | BC155: 0.8254364337 | BD155: 21350.77063 | BE155: 1.114681973 | BJ155: 147 | BK155: 16575.89782 | BL155: 0.8254364337 | BM155: 21350.77063 | BN155: 1.114681973 | BP155: 8187.195193 | BQ155: 12089.68855 | BR155: tx B | BX155: 144000 | BY155: 0.45658 | BZ155: 0.54342 | CA155: 98763.73362 | CB155: 100501.3804 | CC155: 0.54342
BA156: 148 | BB156: 16068.55877 | BC156: 1.784207327 | BD156: 21789.5657 | BE156: 1.839575623 | BJ156: 148 | BK156: 16068.55877 | BL156: 1.784207327 | BM156: 21789.5657 | BN156: 1.839575623 | BP156: 37457.66102 | BQ156: 33397.70298 | BR156: tx A | BX156: 145000 | BY156: 0.45624 | BZ156: 0.54376 | CA156: 99559.35927 | CB156: 101345.6322 | CC156: 0.54376
BA157: 149 | BB157: 15802.81914 | BC157: 0.9222424297 | BD157: 20692.3644 | BE157: 0.8847634712 | BJ157: 149 | BK157: 15802.81914 | BL157: 0.9222424297 | BM157: 20692.3644 | BN157: 0.8847634712 | BP157: 11864.45375 | BQ157: 5850.539735 | BR157: tx A | BX157: 146000 | BY157: 0.456 | BZ157: 0.544 | CA157: 100354.9849 | CB157: 102189.8841 | CC157: 0.544
BA158: 150 | BB158: 16967.89001 | BC158: 0.06476652134 | BD158: 20781.87638 | BE158: 0.1281805979 | BJ158: 150 | BK158: 16967.89001 | BL158: 0.06476652134 | BM158: 20781.87638 | BN158: 0.1281805979 | BP158: -15024.89437 | BQ158: -16936.45844 | BR158: tx A | BX158: 147000 | BY158: 0.45574 | BZ158: 0.54426 | CA158: 101150.6106 | CB158: 103034.1359 | CC158: 0.54426
BA159: 151 | BB159: 14083.73714 | BC159: 1.525560421 | BD159: 22032.3811 | BE159: 0.8714065389 | BJ159: 151 | BK159: 14083.73714 | BL159: 1.525560421 | BM159: 22032.3811 | BN159: 0.8714065389 | BP159: 31683.07549 | BQ159: 4109.815069 | BR159: tx A | BX159: 148000 | BY159: 0.45549 | BZ159: 0.54451 | CA159: 101946.2362 | CB159: 103878.3877 | CC159: 0.54451
BA160: 152 | BB160: 16342.70754 | BC160: 1.403826703 | BD160: 21011.89256 | BE160: 1.757604232 | BJ160: 152 | BK160: 16342.70754 | BL160: 1.403826703 | BM160: 21011.89256 | BN160: 1.757604232 | BP160: 25772.09354 | BQ160: 31716.23439 | BR160: tx B | BX160: 149000 | BY160: 0.45527 | BZ160: 0.54473 | CA160: 102741.8619 | CB160: 104722.6396 | CC160: 0.54473
BA161: 153 | BB161: 13145.10236 | BC161: 1.569799611 | BD161: 20095.29307 | BE161: 1.25296046 | BJ161: 153 | BK161: 13145.10236 | BL161: 1.569799611 | BM161: 20095.29307 | BN161: 1.25296046 | BP161: 33948.88597 | BQ161: 17493.52073 | BR161: tx A | BX161: 150000 | BY161: 0.45508 | BZ161: 0.54492 | CA161: 103537.4875 | CB161: 105566.8914 | CC161: 0.54492
BA162: 154 | BB162: 16213.70662 | BC162: 0.7081836878 | BD162: 21204.37665 | BE162: 0.6133567932 | BJ162: 154 | BK162: 16213.70662 | BL162: 0.7081836878 | BM162: 21204.37665 | BN162: 0.6133567932 | BP162: 5031.804018 | BQ162: -2803.672858 | BR162: tx A
BA163: 155 | BB163: 15735.67565 | BC163: -0.4253089242 | BD163: 20744.06772 | BE163: -0.3510848241 | BJ163: 155 | BK163: 15735.67565 | BL163: -0.4253089242 | BM163: 20744.06772 | BN163: -0.3510848241 | BP163: -28494.94338 | BQ163: -31276.61244 | BR163: tx A
BA164: 156 | BB164: 16657.81382 | BC164: 0.8065118667 | BD164: 20917.54739 | BE164: 0.8442902542 | BJ164: 156 | BK164: 16657.81382 | BL164: 0.8065118667 | BM164: 20917.54739 | BN164: 0.8442902542 | BP164: 7537.542181 | BQ164: 4411.160239 | BR164: tx A
BA165: 157 | BB165: 10554.90668 | BC165: 2.024101228 | BD165: 21063.53032 | BE165: 0.8038777346 | BJ165: 157 | BK165: 10554.90668 | BL165: 2.024101228 | BM165: 21063.53032 | BN165: 0.8038777346 | BP165: 50168.13015 | BQ165: 3052.801716 | BR165: tx A
BA166: 158 | BB166: 16459.15515 | BC166: 0.2307649682 | BD166: 21399.92885 | BE166: 0.3893834273 | BJ166: 158 | BK166: 16459.15515 | BL166: 0.2307649682 | BM166: 21399.92885 | BN166: 0.3893834273 | BP166: -9536.206101 | BQ166: -9718.426031 | BR166: tx A
BA167: 159 | BB167: 13438.60203 | BC167: 0.937588749 | BD167: 21354.19927 | BE167: 0.9809471842 | BJ167: 159 | BK167: 13438.60203 | BL167: 0.937588749 | BM167: 21354.19927 | BN167: 0.9809471842 | BP167: 14689.06044 | BQ167: 8074.21626 | BR167: tx A
BA168: 160 | BB168: 17321.68744 | BC168: 0.9591042956 | BD168: 20949.70302 | BE168: 1.27429203 | BJ168: 160 | BK168: 17321.68744 | BL168: 0.9591042956 | BM168: 20949.70302 | BN168: 1.27429203 | BP168: 11451.44143 | BQ168: 17279.05789 | BR168: tx B
BA169: 161 | BB169: 18589.54334 | BC169: 0.6697620355 | BD169: 20947.26276 | BE169: 0.9344824974 | BJ169: 161 | BK169: 18589.54334 | BL169: 0.6697620355 | BM169: 20947.26276 | BN169: 0.9344824974 | BP169: 1503.317724 | BQ169: 7087.212161 | BR169: tx B
BA170: 162 | BB170: 16999.36161 | BC170: 1.302882828 | BD170: 21254.15399 | BE170: 1.303828189 | BJ170: 162 | BK170: 16999.36161 | BL170: 1.302882828 | BM170: 21254.15399 | BN170: 1.303828189 | BP170: 22087.12324 | BQ170: 17860.69168 | BR170: tx A
BA171: 163 | BB171: 17595.38301 | BC171: 0.008238043856 | BD171: 21247.83064 | BE171: 0.4544316278 | BJ171: 163 | BK171: 17595.38301 | BL171: 0.008238043856 | BM171: 21247.83064 | BN171: 0.4544316278 | BP171: -17348.24169 | BQ171: -7614.881805 | BR171: tx B
BA172: 164 | BB172: 15393.80287 | BC172: 0.8930963155 | BD172: 21357.59515 | BE172: 1.11591488 | BJ172: 164 | BK172: 15393.80287 | BL172: 0.8930963155 | BM172: 21357.59515 | BN172: 1.11591488 | BP172: 11399.08659 | BQ172: 12119.85126 | BR172: tx B
BA173: 165 | BB173: 15705.38209 | BC173: 1.750285221 | BD173: 20953.7251 | BE173: 1.635833613 | BJ173: 165 | BK173: 15705.38209 | BL173: 1.750285221 | BM173: 20953.7251 | BN173: 1.635833613 | BP173: 36803.17455 | BQ173: 28121.2833 | BR173: tx A
BA174: 166 | BB174: 11156.98203 | BC174: 1.881838337 | BD174: 20486.94814 | BE174: 0.728711272 | BJ174: 166 | BK174: 11156.98203 | BL174: 1.881838337 | BM174: 20486.94814 | BN174: 0.728711272 | BP174: 45298.16807 | BQ174: 1374.390017 | BR174: tx A
BA175: 167 | BB175: 15522.13956 | BC175: 1.507942251 | BD175: 20836.1125 | BE175: 1.44701956 | BJ175: 167 | BK175: 15522.13956 | BL175: 1.507942251 | BM175: 20836.1125 | BN175: 1.44701956 | BP175: 29716.12798 | BQ175: 22574.4743 | BR175: tx A
BA176: 168 | BB176: 15724.69369 | BC176: 0.6615547611 | BD176: 21514.61021 | BE176: 0.5421649861 | BJ176: 168 | BK176: 15724.69369 | BL176: 0.6615547611 | BM176: 21514.61021 | BN176: 0.5421649861 | BP176: 4121.949141 | BQ176: -5249.660626 | BR176: tx A
BA177: 169 | BB177: 16607.9104 | BC177: 0.7028329699 | BD177: 19730.58572 | BE177: 0.8106922262 | BJ177: 169 | BK177: 16607.9104 | BL177: 0.7028329699 | BM177: 19730.58572 | BN177: 0.8106922262 | BP177: 4477.078696 | BQ177: 4590.181069 | BR177: tx B
BA178: 170 | BB178: 17452.29518 | BC178: 0.6957091932 | BD178: 21852.32098 | BE178: 1.32257216 | BJ178: 170 | BK178: 17452.29518 | BL178: 0.6957091932 | BM178: 21852.32098 | BN178: 1.32257216 | BP178: 3418.980613 | BQ178: 17824.84382 | BR178: tx B
BA179: 171 | BB179: 16434.40753 | BC179: 1.125921687 | BD179: 20927.57067 | BE179: 1.045844239 | BJ179: 171 | BK179: 16434.40753 | BL179: 1.125921687 | BM179: 20927.57067 | BN179: 1.045844239 | BP179: 17343.24307 | BQ179: 10447.75651 | BR179: tx A
BA180: 172 | BB180: 13739.40264 | BC180: 1.535152066 | BD180: 20603.87255 | BE180: 1.219124214 | BJ180: 172 | BK180: 13739.40264 | BL180: 1.535152066 | BM180: 20603.87255 | BN180: 1.219124214 | BP180: 32315.15935 | BQ180: 15969.85385 | BR180: tx A
BA181: 173 | BB181: 17889.18486 | BC181: 0.9624912663 | BD181: 20550.21027 | BE181: 1.190352804 | BJ181: 173 | BK181: 17889.18486 | BL181: 0.9624912663 | BM181: 20550.21027 | BN181: 1.190352804 | BP181: 10985.55313 | BQ181: 15160.37384 | BR181: tx B
BA182: 174 | BB182: 14688.37011 | BC182: 1.70557967 | BD182: 20037.85698 | BE182: 1.545733465 | BJ182: 174 | BK182: 14688.37011 | BL182: 1.70557967 | BM182: 20037.85698 | BN182: 1.545733465 | BP182: 36479.01998 | BQ182: 26334.14698 | BR182: tx A
BA183: 175 | BB183: 16283.20962 | BC183: 2.081522095 | BD183: 21092.33649 | BE183: 1.784398377 | BJ183: 175 | BK183: 16283.20962 | BL183: 2.081522095 | BM183: 21092.33649 | BN183: 1.784398377 | BP183: 46162.45323 | BQ183: 32439.61483 | BR183: tx A
BA184: 176 | BB184: 15996.51401 | BC184: 1.076041331 | BD184: 20443.66606 | BE184: 0.8945401869 | BJ184: 176 | BK184: 15996.51401 | BL184: 1.076041331 | BM184: 20443.66606 | BN184: 0.8945401869 | BP184: 16284.72591 | BQ184: 6392.539551 | BR184: tx A
BA185: 177 | BB185: 15572.79138 | BC185: 0.6467665224 | BD185: 20876.73003 | BE185: 0.6635636336 | BJ185: 177 | BK185: 15572.79138 | BL185: 0.6467665224 | BM185: 20876.73003 | BN185: 0.6635636336 | BP185: 3830.204294 | BQ185: -969.8210208 | BR185: tx A
BA186: 178 | BB186: 17027.4165 | BC186: 0.7377905035 | BD186: 21322.33192 | BE186: 1.183413025 | BJ186: 178 | BK186: 17027.4165 | BL186: 0.7377905035 | BM186: 21322.33192 | BN186: 1.183413025 | BP186: 5106.29861 | BQ186: 14180.05883 | BR186: tx B
BA187: 179 | BB187: 14991.80282 | BC187: 0.6391229445 | BD187: 21177.01322 | BE187: 0.2913588326 | BJ187: 179 | BK187: 14991.80282 | BL187: 0.6391229445 | BM187: 21177.01322 | BN187: 0.2913588326 | BP187: 4181.885514 | BQ187: -12436.24824 | BR187: tx A
BA188: 180 | BB188: 17262.44595 | BC188: 1.23665532 | BD188: 20972.87678 | BE188: 1.586018066 | BJ188: 180 | BK188: 17262.44595 | BL188: 1.23665532 | BM188: 20972.87678 | BN188: 1.586018066 | BP188: 19837.21365 | BQ188: 26607.6652 | BR188: tx B
BA189: 181 | BB189: 14536.26727 | BC189: 1.149107368 | BD189: 20789.30334 | BE189: 0.9678123879 | BJ189: 181 | BK189: 14536.26727 | BL189: 1.149107368 | BM189: 20789.30334 | BN189: 0.9678123879 | BP189: 19936.95377 | BQ189: 8245.068302 | BR189: tx A
BA190: 182 | BB190: 18330.5097 | BC190: 0.7677635606 | BD190: 21925.36503 | BE190: 1.108541778 | BJ190: 182 | BK190: 18330.5097 | BL190: 0.7677635606 | BM190: 21925.36503 | BN190: 1.108541778 | BP190: 4702.397122 | BQ190: 11330.88832 | BR190: tx B
BA191: 183 | BB191: 13244.9072 | BC191: 2.107320435 | BD191: 19982.34197 | BE191: 1.955775738 | BJ191: 183 | BK191: 13244.9072 | BL191: 2.107320435 | BM191: 19982.34197 | BN191: 1.955775738 | BP191: 49974.70586 | BQ191: 38690.93016 | BR191: tx A
BA192: 184 | BB192: 18420.57434 | BC192: 0.05744854596 | BD192: 21498.05633 | BE192: 0.7120150729 | BJ192: 184 | BK192: 18420.57434 | BL192: 0.05744854596 | BM192: 21498.05633 | BN192: 0.7120150729 | BP192: -16697.11796 | BQ192: -137.6041408 | BR192: tx B
BA193: 185 | BB193: 14886.6438 | BC193: 0.7099626077 | BD193: 21979.07772 | BE193: 0.3909135726 | BJ193: 185 | BK193: 14886.6438 | BL193: 0.7099626077 | BM193: 21979.07772 | BN193: 0.3909135726 | BP193: 6412.234433 | BQ193: -10251.67055 | BR193: tx A
BA194: 186 | BB194: 17223.87238 | BC194: 0.3022349965 | BD194: 21451.5455 | BE194: 0.7114601196 | BJ194: 186 | BK194: 17223.87238 | BL194: 0.3022349965 | BM194: 21451.5455 | BN194: 0.7114601196 | BP194: -8156.822486 | BQ194: -107.7419087 | BR194: tx B
BA195: 187 | BB195: 10976.27651 | BC195: 1.499692721 | BD195: 19534.11304 | BE195: 0.2107937526 | BJ195: 187 | BK195: 10976.27651 | BL195: 1.499692721 | BM195: 19534.11304 | BN195: 0.2107937526 | BP195: 34014.50511 | BQ195: -13210.30046 | BR195: tx A
BA196: 188 | BB196: 14670.67584 | BC196: 1.053904664 | BD196: 21418.75588 | BE196: 0.8991649433 | BJ196: 188 | BK196: 14670.67584 | BL196: 1.053904664 | BM196: 21418.75588 | BN196: 0.8991649433 | BP196: 16946.46407 | BQ196: 5556.192424 | BR196: tx A
BA197: 189 | BB197: 15198.20801 | BC197: 0.5178375749 | BD197: 21312.47201 | BE197: 0.4523492543 | BJ197: 189 | BK197: 15198.20801 | BL197: 0.5178375749 | BM197: 21312.47201 | BN197: 0.4523492543 | BP197: 336.9192382 | BQ197: -7741.994383 | BR197: tx A
BA198: 190 | BB198: 19982.77749 | BC198: 0.4803537311 | BD198: 21644.18073 | BE198: 1.275610337 | BJ198: 190 | BK198: 19982.77749 | BL198: 0.4803537311 | BM198: 21644.18073 | BN198: 1.275610337 | BP198: -5572.165561 | BQ198: 16624.12937 | BR198: tx B
BA199: 191 | BB199: 15117.98121 | BC199: 0.4999810237 | BD199: 20252.79414 | BE199: 0.6398338531 | BJ199: 191 | BK199: 15117.98121 | BL199: 0.4999810237 | BM199: 20252.79414 | BN199: 0.6398338531 | BP199: -118.5504958 | BQ199: -1057.778547 | BR199: tx A
BA200: 192 | BB200: 18135.55125 | BC200: 0.5981540174 | BD200: 21019.67966 | BE200: 0.7259522653 | BJ200: 192 | BK200: 18135.55125 | BL200: 0.5981540174 | BM200: 21019.67966 | BN200: 0.7259522653 | BP200: -190.9307243 | BQ200: 758.8882998 | BR200: tx B
... 925 more rows

Sheet Parameters
A1: Model Control | E1: opt_modeltype
A2: opt_modeltype | B2: Model Type | C2: Stochastic | E2: Deterministic
E3: Stochastic
A6: Transition Parameters
A7: Parameter | B7: Description | C7: Refers to | D7: Value Used | E7: Deterministic | F7: Stochastic | G7: Random | H7: Dist | I7: Param1 | K7: Param2 | P7: Mean | Q7: SD
A8: p_active | B8: Probability of active disease from silent disease | C8: Treatment A | D8: =IF(opt_modeltype=$E$2,E8,F8) -> 0.06670687852 | E8: 0.088 | F8: =_xlfn.BETA.INV(G8,J8,L8) -> 0.06670687852 | G8: =RAND() -> 0.2055322287 | H8: beta | I8: α | J8: 11 | K8: b | L8: 114 | P8: =J8/(J8+L8) -> 0.088 | Q8: =J8*L8/((J8+L8)^2*(J8+L8+1)) -> 0.000636952381
C9: Treatment B | D9: 0.111075122 | E9: 0.09267431598 | F9: 0.111075122 | G9: 0.9797939478 | H9: beta | I9: α | J9: 105 | K9: b | L9: 1028 | P9: 0.09267431598 | Q9: 7.41497241e-05
A10: p_success | B10: Probability of silent disease from active disease | C10: Treatment A | D10: 0.2539622864 | E10: 0.1846153846 | F10: 0.2539622864 | G10: 0.9177906724 | H10: beta | I10: α | J10: 12 | K10: b | L10: 53 | P10: 0.1846153846 | Q10: 0.002280796127
C11: Treatment B | D11: 0.2167303303 | E11: 0.2119047619 | F11: 0.2167303303 | G11: 0.639253763 | H11: beta | I11: α | J11: 178 | K11: b | L11: 662 | P11: 0.2119047619 | Q11: 0.0001985744754
A12: p_compl_sil | B12: Probability of complications from silent disease | C12: Treatment A | D12: 0.005108717634 | E12: 0.008 | F12: 0.005108717634 | G12: 0.47011997 | H12: beta | I12: α | J12: 1 | K12: b | L12: 124 | P12: 0.008 | Q12: 6.298412698e-05
C13: Treatment B | D13: 0.01816038784 | E13: 0.01412180053 | F13: 0.01816038784 | G13: 0.8725854779 | H13: beta | I13: α | J13: 16 | K13: b | L13: 1117 | P13: 0.01412180053 | Q13: 1.227722688e-05
A14: p_compl_act | B14: Probability of complications from active disease | C14: Treatment A | D14: 0.1074325885 | E14: 0.1230769231 | F14: 0.1074325885 | G14: 0.3815245418 | H14: beta | I14: α | J14: 8 | K14: b | L14: 57 | P14: 0.1230769231 | Q14: 0.001635287789
C15: Treatment B | D15: 0.1038238659 | E15: 0.09761904762 | F15: 0.1038238659 | G15: 0.7342637391 | H15: beta | I15: α | J15: 82 | K15: b | L15: 758 | P15: 0.09761904762 | Q15: 0.0001047438397
A16: p_dead_sil | B16: Probability of death from chronic, silent disease | C16: Treatment A | D16: 0 | E16: 0 | F16: 0 | H16: fixed (no data)
C17: Treatment B | D17: 0.003232716145 | E17: 0.001765225066 | F17: 0.003232716145 | G17: 0.8804384973 | H17: beta | I17: α | J17: 2 | K17: b | L17: 1131 | P17: 0.001765225066 | Q17: 1.553888048e-06
A18: p_dead_act | B18: Probability of death from chronic, active disease | C18: Treatment A | D18: 0.00946351479 | E18: 0.001150747986 | F18: 0.00946351479 | G18: 0.4558601654 | H18: beta | I18: α | J18: 1 | K18: b | L18: 64 | P18: 0.01538461538 | Q18: 0.0002295140757
C19: Treatment B | D19: 0.0009403545299 | E19: 0.00119047619 | F19: 0.0009403545299 | G19: 0.5458504061 | H19: beta | I19: α | J19: 1 | K19: b | L19: 839 | P19: 0.00119047619 | Q19: 1.413863207e-06
A20: p_dead_cmp | B20: Probability of death from complications state | C20: Common | D20: 0.008989141004 | E20: 0.003494060098 | F20: 0.008989141004 | G20: 0.9959654703 | H20: beta | I20: α | J20: 5 | K20: b | L20: 1426 | P20: 0.003494060098 | Q20: 2.431460644e-06
A22: Cost Parameters | N22: Data informing | P22: Check
A23: Parameter | B23: Description | C23: Refers to | D23: Value Used | E23: Deterministic | F23: Stochastic | G23: Random | H23: Dist | I23: Param1 | K23: Param2 | N23: Mean | O23: SD | P23: Mean | Q23: SD | S23: Mean | T23: Variance | U23: Param1 | V23: Param2
A24: Chronic, silent disease | B24: Health state specific costs | C24: Common | D24: =IF(opt_modeltype=$E$2,E24,F24) -> 24.50960168 | E24: 23.51960197 | F24: =_xlfn.LOGNORM.INV(G24,J24,L24) -> 24.50960168 | G24: =RAND() -> 0.1758279015 | H24: lognormal | I24: μ | J24: =LN(N24)-L24^2/2 -> 3.329821832 | K24: σ | L24: =SQRT(LN(1+(O24/N24)^2)) -> 0.1403901221 | N24: 28.21 | O24: 3.98 | P24: =EXP(J24+L24^2/2) -> 28.21 | Q24: =SQRT((EXP(L24^2)-1)*P24^2) -> 3.98
A25: Chronic, active disease | B25: Health state specific costs | C25: Common | D25: =IF(opt_modeltype=$E$2,E25,F25) -> 102.152436 | E25: 84.4295517 | F25: =_xlfn.LOGNORM.INV(G25,J25,L25) -> 102.152436 | G25: 0.8099864687 | H25: lognormal | I25: μ | J25: =LN(N25)-L25^2/2 -> 4.399884248 | K25: σ | L25: =SQRT(LN(1+(O25/N25)^2)) -> 0.2581111139 | N25: 84.2 | O25: 22.1 | P25: =EXP(J25+L25^2/2) -> 84.2 | Q25: =SQRT((EXP(L25^2)-1)*P25^2) -> 22.1
A26: Complications | B26: Health state specific costs | C26: Common | D26: =IF(opt_modeltype=$E$2,E26,F26) -> 433.2402952 | E26: 396.9966362 | F26: =_xlfn.GAMMA.INV(G26,J26,L26) -> 433.2402952 | G26: =RAND() -> 0.5177134326 | H26: gamma | I26: α | J26: =(N26/O26)^2 -> 577.199958 | K26: b | L26: =O26^2/N26 -> 0.7496362292 | N26: 432.69 | O26: 18.01 | P26: =J26*L26 -> 432.69 | Q26: =SQRT(J26*L26^2) -> 18.01
A27: c_TxA | B27: Cost of Treament A | C27: Treatment A | D27: =IF(opt_modeltype=$E$2,E27,F27) -> 38 | E27: 38 | F27: =E27 -> 38 | H27: fixed
A28: c_TxB | B28: Cost of Treament B | C28: Treatment B | D28: =IF(opt_modeltype=$E$2,E28,F28) -> 400 | E28: 400 | F28: =E28 -> 400 | H28: fixed
A30: Utility Parameters
A31: Parameter | B31: Description | C31: Refers to | D31: Value Used | E31: Deterministic | F31: Stochastic | G31: Random | H31: Dist | I31: Param1 | K31: Param2 | M31: a + b | N31: Mean | O31: SD | P31: Mean | Q31: SD
A32: Chronic, silent disease | B32: Health state specific Utility | C32: Common | D32: =IF(opt_modeltype=$E$2,E32,F32) -> 0.818782788 | E32: 0.819 | F32: =_xlfn.BETA.INV(G32,J32,L32) -> 0.818782788 | G32: =RAND() -> 0.4838448499 | H32: beta | I32: α | J32: =N32*M32 -> 274.482 | K32: b | L32: =M32-J32 -> 60.66085714 | M32: =N32*(1-N32)/O32^2-1 -> 335.1428571 | N32: 0.819 | O32: 0.021 | P32: =J32/(J32+L32) -> 0.819 | Q32: =J32*L32/((J32+L32)^2*(J32+L32+1)) -> 0.000441
A33: Chronic, active disease | B33: Health state specific Utility | C33: Common | D33: =IF(opt_modeltype=$E$2,E33,F33) -> 0.5047052939 | E33: 0.653 | F33: =_xlfn.BETA.INV(G33,J33,L33) -> 0.5047052939 | G33: =RAND() -> 0.2000593439 | H33: beta | I33: α | J33: =N33*M33 -> 4.527628234 | K33: b | L33: =M33-J33 -> 2.405952523 | M33: =N33*(1-N33)/O33^2-1 -> 6.933580757 | N33: 0.653 | O33: 0.169 | P33: =J33/(J33+L33) -> 0.653 | Q33: =J33*L33/((J33+L33)^2*(J33+L33+1)) -> 0.028561
A34: Complications | B34: Health state specific Utility | C34: Common | D34: =IF(opt_modeltype=$E$2,E34,F34) -> 0.005625633547 | E34: -0.137 | F34: =1-F35 -> 0.005625633547
B35: DISUTILITY FOR COMPLICATIONS STATE | F35: =_xlfn.GAMMA.INV(G35,J35,L35) -> 0.9943743665 | G35: =RAND() -> 0.2192349389 | H35: gamma | I35: α | J35: =(N35/O35)^2 -> 39.90027778 | K35: b | L35: =O35^2/N35 -> 0.02849604222 | M35: =N35*(1-N35)/O35^2-1 -> -5.807685185 | N35: 1.137 | O35: 0.18 | P35: =J35*L35 -> 1.137 | Q35: =SQRT(J35*L35^2) -> 0.18

Sheet Dummy for calculation purposes
E8: TxA | H8: SILENT | I8: ACTIVE | J8: COMPL | K8: DEAD | M8: TOTAL
G9: SILENT | H9: =M9-I9-J9-K9 -> 113 | I9: 11 | J9: 1 | K9: 0 | M9: 125 | V9: Mean | W9: SD | Y9: Chronic, active disease | Z9: Complications
G10: ACTIVE | H10: 12 | I10: =M10-H10-J10-K10 -> 44 | J10: 8 | K10: 1 | M10: 65 | U10: Chronic, silent disease | V10: 0.819 | W10: 0.021 | Y10: 0.403 | Z10: 0.219
G11: COMPL | H11: 0 | I11: 0 | J11: =M11-H11-I11-K11 -> 1426 | K11: 5 | M11: 1431 | U11: Chronic, active disease | V11: 0.653 | W11: 0.109 | Z11: 0.673
G12: DEAD | H12: 0 | I12: 0 | J12: 0 | K12: 1 | M12: 1 | U12: Complications | V12: -0.137 | W12: 0.18
H16: SILENT | I16: ACTIVE | J16: COMPL | K16: DEAD | U16: SILENT | V16: =W10^2 -> 0.000441 | W16: =W10*W11*Y10 -> 0.000922467 | X16: =Z10*W10*W12 -> 0.00082782
G17: SILENT | H17: =H9/$M9 -> 0.904 | I17: 0.088 | J17: 0.008 | K17: 0 | U17: ACTIVE | V17: =W16 -> 0.000922467 | W17: =W11^2 -> 0.011881 | X17: =Z11*W11*W12 -> 0.01320426
G18: ACTIVE | H18: 0.1846153846 | I18: 0.6769230769 | J18: 0.1230769231 | K18: 0.01538461538 | U18: COMPL | V18: =X16 -> 0.00082782 | W18: =X17 -> 0.01320426 | X18: =W12^2 -> 0.0324
G19: COMPL | H19: 0 | I19: 0 | J19: 0.9965059399 | K19: 0.003494060098
G20: DEAD | H20: 0 | I20: 0 | J20: 0 | K20: 1
E24: TxB | H24: SILENT | I24: ACTIVE | J24: COMPL | K24: DEAD | M24: TOTAL
G25: SILENT | H25: =M25-I25-J25-K25 -> 1011 | I25: 105 | J25: 16 | K25: 1 | M25: 1133
G26: ACTIVE | H26: 178 | I26: =M26-H26-J26-K26 -> 579 | J26: 82 | K26: 1 | M26: 840
G27: COMPL | H27: 0 | I27: 0 | J27: =M27-H27-I27-K27 -> 1422 | K27: 9 | M27: 1431 | U27: State | V27: Mean | W27: Standard deviation | X27: z
G28: DEAD | H28: 0 | I28: 0 | J28: 0 | K28: 1 | M28: 1 | U28: SILENT | V28: 0.819 | W28: 0.021 | X28: =(1-V28)/W28 -> 8.619047619
U29: ACTIVE | V29: 0.653 | W29: 0.109 | X29: =(1-V29)/W29 -> 3.183486239 | Z29: =NORMSDIST(X29) -> 0.9992724348
U30: COMPL | V30: -0.137 | W30: 0.18 | X30: 6.316666667
H32: SILENT | I32: ACTIVE | J32: COMPL | K32: DEAD
G33: SILENT | H33: =H25/$M25 -> 0.892321271 | I33: 0.09267431598 | J33: 0.01412180053 | K33: 0.0008826125331
G34: ACTIVE | H34: 0.2119047619 | I34: 0.6892857143 | J34: 0.09761904762 | K34: 0.00119047619
G35: COMPL | H35: 0 | I35: 0 | J35: 0.9937106918 | K35: 0.006289308176
G36: DEAD | H36: 0 | I36: 0 | J36: 0 | K36: 1

Sheet Sheet3

Sheet Sheet1

Sheet Sheet2
